BodyName,ServiceAreaCategorisation,ServiceDivisionCategorisation,ExpensesType,Date,TransactionNumber,Amount,CapitalorRevenue,SupplierName
Peterborough City Council,Children's & Education Services - Education,Non-School Funding,Supplies and Services,01/07/2011,367756,865.97,REVENUE,Eastern Shires Purchasing Organisation
Peterborough City Council,Deficit/(Surplus) on Trading Undertakings,Trading Account Surpluses & Deficits,Supplies and Services,01/07/2011,386875,1103.52,REVENUE,Barron Clark Castings Ltd
Peterborough City Council,Deficit/(Surplus) on Trading Undertakings,Trading Account Surpluses & Deficits,Transport,01/07/2011,387721,567.78,REVENUE,Ford & Slater Group Ltd
Peterborough City Council,Capital,Capital,Capital Pending Update to BS,01/07/2011,388265,900,CAPITAL,Lambert Smith Hampton
Peterborough City Council,Children's & Education Services - Children's Social Care,Other Children's & Families Services,Supplies and Services,01/07/2011,389456,29750,REVENUE,Peterborough Diocesan Family Care
Peterborough City Council,Children's & Education Services - Children's Social Care,Other Children's & Families Services,Supplies and Services,01/07/2011,390338,606.1,REVENUE,Purple Professional Services Ltd
Peterborough City Council,More than one Service Area Category,More than one Service Division,Third Party Payments,01/07/2011,390751,748767.8,REVENUE,Enterprise Managed Services Limited
Peterborough City Council,Children's & Education Services - Children's Social Care,Children Looked After,Supplies and Services,01/07/2011,391915,5106,REVENUE,Fostering Network
Peterborough City Council,Central Services to the Public,Elections,Supplies and Services,01/07/2011,392267,577.27,REVENUE,PHS Datashred
Peterborough City Council,Support Services,Support Services,Premises,01/07/2011,392469,760.3,REVENUE,E.ON Energy
Peterborough City Council,Support Services,Support Services,Supplies and Services,01/07/2011,392596,635.57,REVENUE,Pitney Bowes Finance Plc
Peterborough City Council,"Cultural, Environmental and Planning Services",Street Cleansing,Supplies and Services,01/07/2011,392673,12943.22,REVENUE,J C Decaux UK
Peterborough City Council,More than one Service Area Category,More than one Service Division,Balance Sheet,01/07/2011,392730,513.24,Balance Sheet,Peterborough PCT
Peterborough City Council,More than one Service Area Category,More than one Service Division,Balance Sheet,01/07/2011,392733,1026.46,Balance Sheet,Redacted Personal Data
Peterborough City Council,"Highways, Roads & Transport Services",Public Transport,Third Party Payments,01/07/2011,392805,2370.99,REVENUE,Orton Comm. Transport Assoc. Ltd
Peterborough City Council,"Highways, Roads & Transport Services",Public Transport,Third Party Payments,01/07/2011,392806,891.23,REVENUE,WRVS
Peterborough City Council,"Highways, Roads & Transport Services",Public Transport,Supplies and Services,01/07/2011,392813,1800,REVENUE,Pindar plc
Peterborough City Council,Deficit/(Surplus) on Trading Undertakings,Trading Account Surpluses & Deficits,Premises,01/07/2011,392818,41871.11,REVENUE,Dorman & Co (Certified Bailiffs) Ltd
Peterborough City Council,Children's & Education Services - Education,Non-School Funding,Supplies and Services,01/07/2011,392846,858,REVENUE,Noah's Ark Pre-School
Peterborough City Council,Children's & Education Services - Education,Non-School Funding,Supplies and Services,01/07/2011,392847,546,REVENUE,Eye Pre-School
Peterborough City Council,Children's & Education Services - Education,Non-School Funding,Supplies and Services,01/07/2011,392851,585,REVENUE,Best Start Childrens Nursery
Peterborough City Council,Children's & Education Services - Education,Non-School Funding,Supplies and Services,01/07/2011,392854,648,REVENUE,West Town Playgroup
Peterborough City Council,Children's & Education Services - Education,Non-School Funding,Supplies and Services,01/07/2011,392855,714,REVENUE,West Town Playgroup
Peterborough City Council,Children's & Education Services - Education,Non-School Funding,Supplies and Services,01/07/2011,392856,720,REVENUE,Beeches Pre-School
Peterborough City Council,Children's & Education Services - Education,Non-School Funding,Supplies and Services,01/07/2011,392857,720,REVENUE,Beeches Pre-School
Peterborough City Council,Children's & Education Services - Education,Non-School Funding,Supplies and Services,01/07/2011,392859,576,REVENUE,St Michaels Playgroup
Peterborough City Council,More than one Service Area Category,More than one Service Division,More than one Expenses Type,01/07/2011,392860,3910.8,"Mixture of Capital, Revenue and/or Balance Sheet",Burmor Construction
Peterborough City Council,Children's & Education Services - Education,Management and support services,Supplies and Services,01/07/2011,392862,714.06,REVENUE,ADT Fire and Security
Peterborough City Council,Children's & Education Services - Education,Non-School Funding,Transport,01/07/2011,392864,1554,REVENUE,3 Star Ambassador Taxis
Peterborough City Council,Children's & Education Services - Education,Non-School Funding,Transport,01/07/2011,392865,1288.8,REVENUE,3 Star Ambassador Taxis
Peterborough City Council,Children's & Education Services - Education,Non-School Funding,Transport,01/07/2011,392866,530.4,REVENUE,A2B Euro Cars
Peterborough City Council,More than one Service Area Category,More than one Service Division,Transport,01/07/2011,392867,1573.2,REVENUE,A2B Euro Cars
Peterborough City Council,More than one Service Area Category,More than one Service Division,Transport,01/07/2011,392868,1550.4,REVENUE,A2B Euro Cars
Peterborough City Council,Children's & Education Services - Education,Non-School Funding,Transport,01/07/2011,392869,1046.4,REVENUE,A2B Euro Cars
Peterborough City Council,Children's & Education Services - Education,Non-School Funding,Transport,01/07/2011,392870,2006.4,REVENUE,A2B Euro Cars
Peterborough City Council,Children's & Education Services - Education,Non-School Funding,Transport,01/07/2011,392872,1231.2,REVENUE,A2B Euro Cars
Peterborough City Council,Children's & Education Services - Education,Non-School Funding,Transport,01/07/2011,392873,1217.52,REVENUE,A2B Euro Cars
Peterborough City Council,Children's & Education Services - Education,Non-School Funding,Transport,01/07/2011,392874,1003.2,REVENUE,A2B Euro Cars
Peterborough City Council,Children's & Education Services - Education,Non-School Funding,Transport,01/07/2011,392876,684,REVENUE,A2B Euro Cars
Peterborough City Council,Children's & Education Services - Education,Non-School Funding,Transport,01/07/2011,392877,1732.8,REVENUE,A2B Euro Cars
Peterborough City Council,Children's & Education Services - Education,Non-School Funding,Transport,01/07/2011,392878,1459.2,REVENUE,A2B Euro Cars
Peterborough City Council,Children's & Education Services - Education,Non-School Funding,Transport,01/07/2011,392879,592.8,REVENUE,A2B Euro Cars
Peterborough City Council,Children's & Education Services - Education,Non-School Funding,Transport,01/07/2011,392881,1082.4,REVENUE,A2B Euro Cars
Peterborough City Council,Children's & Education Services - Education,Non-School Funding,Transport,01/07/2011,392882,1252.44,REVENUE,Woodgrange Travel Ltd t/a DiamondCars
Peterborough City Council,Children's & Education Services - Education,Non-School Funding,Transport,01/07/2011,392883,768,REVENUE,Eames Minibuses
Peterborough City Council,Children's & Education Services - Education,Non-School Funding,Transport,01/07/2011,392884,1209.6,REVENUE,Peterborough Cars
Peterborough City Council,Children's & Education Services - Education,Non-School Funding,Transport,01/07/2011,392885,863.28,REVENUE,Peterborough Cars
Peterborough City Council,Children's & Education Services - Education,Non-School Funding,More than one Expenses Type,01/07/2011,392886,766.8,REVENUE,Peterborough Cars
Peterborough City Council,Children's & Education Services - Education,Non-School Funding,Transport,01/07/2011,392887,2116.2,REVENUE,Goldstar Cabs Ltd
Peterborough City Council,Children's & Education Services - Education,Non-School Funding,Transport,01/07/2011,392888,2074.83,REVENUE,Translinc Ltd
Peterborough City Council,"Cultural, Environmental and Planning Services",Recreation & Sport,Premises,01/07/2011,392891,1005.83,REVENUE,Chubb Electronic Security Ltd
Peterborough City Council,Housing Services,Housing Benefits,Employees,01/07/2011,392895,706.13,REVENUE,Capita Business Services Ltd
Peterborough City Council,More than one Service Area Category,More than one Service Division,More than one Expenses Type,01/07/2011,392898,3188,"Mixture of Capital, Revenue and/or Balance Sheet",T G Development Ltd
Peterborough City Council,More than one Service Area Category,More than one Service Division,More than one Expenses Type,01/07/2011,392901,9300,"Mixture of Capital, Revenue and/or Balance Sheet",Ransome Engineering Services Ltd
Peterborough City Council,More than one Service Area Category,More than one Service Division,Balance Sheet,01/07/2011,392902,1165.06,Balance Sheet,Browne Jacobson
Peterborough City Council,Children's & Education Services - Education,Secondary,Premises,01/07/2011,392908,3004.13,REVENUE,Anglian Water
Peterborough City Council,More than one Service Area Category,More than one Service Division,Transport,01/07/2011,392914,1757.56,REVENUE,ARVAL PHH Business Solutions Ltd
Peterborough City Council,Capital,Capital,Capital Pending Update to BS,01/07/2011,392917,3368.21,CAPITAL,L Garfield (Builders) Ltd
Peterborough City Council,Children's & Education Services - Education,Secondary,Premises,01/07/2011,392919,2690.55,REVENUE,Eastern Shires Purchasing Organisation
Peterborough City Council,Deficit/(Surplus) on Trading Undertakings,Trading Account Surpluses & Deficits,Supplies and Services,01/07/2011,392934,540,REVENUE,Key Systems
Peterborough City Council,Children's & Education Services - Education,Non-School Funding,Transport,01/07/2011,392943,1973.4,REVENUE,Goldstar Cabs Ltd
Peterborough City Council,Adult Social Care,Other Adult Services,Supplies and Services,01/07/2011,392962,8925,REVENUE,Redacted Personal Data
Peterborough City Council,Support Services,Support Services,Premises,01/07/2011,393004,665.04,REVENUE,E.ON Energy
Peterborough City Council,Support Services,Support Services,Premises,01/07/2011,393005,888.97,REVENUE,British Gas Business
Peterborough City Council,Support Services,Support Services,Premises,01/07/2011,393006,939.21,REVENUE,British Gas Business
Peterborough City Council,Deficit/(Surplus) on Trading Undertakings,Trading Account Surpluses & Deficits,Supplies and Services,04/07/2011,363539,660,REVENUE,Redacted Personal Data
Peterborough City Council,Housing Services,Homelessness,Supplies and Services,04/07/2011,389342,650,REVENUE,Anchor Lodge
Peterborough City Council,Support Services,Support Services,Supplies and Services,04/07/2011,389986,2937.82,REVENUE,Phoenix Software Ltd
Peterborough City Council,"Cultural, Environmental and Planning Services",Community Safety (CCTV),Supplies and Services,04/07/2011,390127,8892.16,REVENUE,Quadrant Security Group Ltd
Peterborough City Council,Housing Services,Homelessness,Supplies and Services,04/07/2011,390287,3480,REVENUE,Redacted Personal Data
Peterborough City Council,Children's & Education Services - Children's Social Care,Children's Services - Commissioning and Social Work,Third Party Payments,04/07/2011,390375,4285,REVENUE,YMCA Cambridge & Peterborough
Peterborough City Council,Children's & Education Services - Children's Social Care,Children Looked After,Supplies and Services - Transfer Payments,04/07/2011,390381,2785.71,REVENUE,Nene Valley Fostering Agency
Peterborough City Council,Children's & Education Services - Education,Non-School Funding,Supplies and Services,04/07/2011,390386,3307.2,REVENUE,SGA Systems Ltd
Peterborough City Council,Children's & Education Services - Children's Social Care,Children Looked After,Supplies and Services - Transfer Payments,04/07/2011,390388,2785.71,REVENUE,Nene Valley Fostering Agency
Peterborough City Council,Children's & Education Services - Children's Social Care,Children Looked After,Supplies and Services - Transfer Payments,04/07/2011,390393,2910.64,REVENUE,Nene Valley Fostering Agency
Peterborough City Council,Children's & Education Services - Education,Non-School Funding,Supplies and Services,04/07/2011,390453,560,REVENUE,Twigglets Day Nursery
Peterborough City Council,Children's & Education Services - Children's Social Care,Children Looked After,Supplies and Services - Transfer Payments,04/07/2011,390457,16427.44,REVENUE,Young Options College Ltd
Peterborough City Council,Children's & Education Services - Children's Social Care,Other Children's & Families Services,Employees,04/07/2011,390471,1776,REVENUE,Medicare First
Peterborough City Council,Children's & Education Services - Children's Social Care,Other Children's & Families Services,Employees,04/07/2011,390472,1560,REVENUE,Medicare First
Peterborough City Council,Children's & Education Services - Children's Social Care,Children Looked After,Supplies and Services - Transfer Payments,04/07/2011,390569,18483.44,REVENUE,Young Options College Ltd
Peterborough City Council,Children's & Education Services - Children's Social Care,Family Support Services,Third Party Payments,04/07/2011,390583,26707.25,REVENUE,KIDS
Peterborough City Council,"Highways, Roads & Transport Services",Street Lighting,Premises,04/07/2011,390604,692.06,REVENUE,E.ON Energy
Peterborough City Council,Children's & Education Services - Children's Social Care,Youth Justice,Premises,04/07/2011,390764,4253.42,REVENUE,Artesian Property Partnership
Peterborough City Council,Children's & Education Services - Children's Social Care,Youth Justice,Premises,04/07/2011,390765,4536.98,REVENUE,Artesian Property Partnership
Peterborough City Council,Children's & Education Services - Children's Social Care,Children Looked After,Supplies and Services - Transfer Payments,04/07/2011,390768,4550,REVENUE,Chelfham Mill School Ltd
Peterborough City Council,Children's & Education Services - Education,Secondary,Supplies and Services,04/07/2011,390805,525,REVENUE,Sports Connections Foundation
Peterborough City Council,Children's & Education Services - Education,Secondary,Premises,04/07/2011,391023,3578.69,REVENUE,Npower Ltd
Peterborough City Council,Capital,Capital,Capital Pending Update to BS,04/07/2011,391924,121174.58,CAPITAL,McArdle Sport - TEC Ltd
Peterborough City Council,Support Services,Support Services,Supplies and Services,04/07/2011,392311,28259.98,REVENUE,Danwood Group Limited
Peterborough City Council,Deficit/(Surplus) on Trading Undertakings,Trading Account Surpluses & Deficits,Supplies and Services,04/07/2011,392374,31440,REVENUE,Wilks Head & Eve
Peterborough City Council,"Cultural, Environmental and Planning Services",Street Cleansing,Transport,04/07/2011,392569,565.72,REVENUE,Northgate Vehicle Hire (East Anglia) Ltd
Peterborough City Council,Support Services,Support Services,Premises,04/07/2011,392590,8808.41,REVENUE,Savills L&P Ltd
Peterborough City Council,"Highways, Roads & Transport Services",Public Transport,Supplies and Services,04/07/2011,392947,2622.49,REVENUE,First Eastern Counties Buses Ltd
Peterborough City Council,"Cultural, Environmental and Planning Services",Street Cleansing,Transport,04/07/2011,392954,12160.8,REVENUE,Applied Sweepers Group Leasing Ltd
Peterborough City Council,"Highways, Roads & Transport Services",Public Transport,Supplies and Services,04/07/2011,392956,13374.95,REVENUE,First Eastern Counties Buses Ltd
Peterborough City Council,"Highways, Roads & Transport Services",Public Transport,Supplies and Services,04/07/2011,392957,546.62,REVENUE,First Eastern Counties Buses Ltd
Peterborough City Council,"Highways, Roads & Transport Services",Public Transport,Supplies and Services,04/07/2011,392958,-593.69,REVENUE,First Eastern Counties Buses Ltd
Peterborough City Council,"Highways, Roads & Transport Services",Parking Services,Supplies and Services,04/07/2011,392959,2675.52,REVENUE,First Eastern Counties Buses Ltd
Peterborough City Council,"Highways, Roads & Transport Services",Public Transport,Supplies and Services,04/07/2011,392960,1852.94,REVENUE,First Eastern Counties Buses Ltd
Peterborough City Council,"Highways, Roads & Transport Services",Public Transport,Supplies and Services,04/07/2011,392961,4879.95,REVENUE,First Eastern Counties Buses Ltd
Peterborough City Council,More than one Service Area Category,More than one Service Division,More than one Expenses Type,04/07/2011,393060,2127.47,REVENUE,Peterborough City Council
Peterborough City Council,Children's & Education Services - Children's Social Care,Family Support Services,Supplies and Services,04/07/2011,393089,8778,REVENUE,Redacted Personal Data
Peterborough City Council,Support Services,Support Services,Premises,04/07/2011,393093,5392.41,REVENUE,Eastern Shires Purchasing Organisation
Peterborough City Council,Support Services,Support Services,Supplies and Services,04/07/2011,393132,2951.05,REVENUE,Vivacity Culture and Leisure
Peterborough City Council,Children's & Education Services - Children's Social Care,Children's Services - Commissioning and Social Work,Third Party Payments,04/07/2011,393143,9399.54,REVENUE,NACRO
Peterborough City Council,Children's & Education Services - Children's Social Care,Youth Justice,Supplies and Services,04/07/2011,393154,1050,REVENUE,The Outstanding Events Co. Ltd
Peterborough City Council,Children's & Education Services - Education,Non-School Funding,Supplies and Services,04/07/2011,393158,3600,REVENUE,Innovative Solutions
Peterborough City Council,More than one Service Area Category,More than one Service Division,Balance Sheet,04/07/2011,393168,833159.83,Balance Sheet,Teachers Pensions
Peterborough City Council,Children's & Education Services - Education,Non-School Funding,Employees,04/07/2011,393169,24124.64,REVENUE,Teachers Pensions
Peterborough City Council,More than one Service Area Category,More than one Service Division,Balance Sheet,04/07/2011,393170,8198.64,Balance Sheet,The Prudential Assurance Company Ltd
Peterborough City Council,More than one Service Area Category,More than one Service Division,Balance Sheet,04/07/2011,393171,6218.81,Balance Sheet,Teachers Pensions
Peterborough City Council,Support Services,Support Services,Premises,04/07/2011,393184,4195.31,REVENUE,Anglian Water
Peterborough City Council,Children's & Education Services - Children's Social Care,Other Children's & Families Services,Employees,06/07/2011,375032,1776,REVENUE,Swim
Peterborough City Council,"Cultural, Environmental and Planning Services",Regulatory services,Supplies and Services,06/07/2011,381756,1526.14,REVENUE,"Pengelly M O A & G P Mizen,"
Peterborough City Council,Children's & Education Services - Children's Social Care,Family Support Services,More than one Expenses Type,06/07/2011,381776,1114.69,REVENUE,Swim
Peterborough City Council,Housing Services,Private Sector Housing Renewal,Supplies and Services,06/07/2011,385178,4049.09,REVENUE,Gemini Consultants Ltd
Peterborough City Council,Housing Services,Housing Benefits,Employees,06/07/2011,387658,3092.64,REVENUE,Imperial Civil Enforcement Solutions
Peterborough City Council,"Cultural, Environmental and Planning Services",Regulatory services,Supplies and Services,06/07/2011,389335,1578.21,REVENUE,"Pengelly M O A & G P Mizen,"
Peterborough City Council,Children's & Education Services - Children's Social Care,Support Services & Management Costs,Employees,06/07/2011,390021,15480,REVENUE,Dartington Hall Trust
Peterborough City Council,Children's & Education Services - Children's Social Care,Other Children's & Families Services,Employees,06/07/2011,390086,3630,REVENUE,Flick Schofield Ltd
Peterborough City Council,Children's & Education Services - Education,Secondary,Supplies and Services,06/07/2011,390269,2125.65,REVENUE,IIC by Education (P'boro) Ltd
Peterborough City Council,Housing Services,Private Sector Housing Renewal,Supplies and Services,06/07/2011,390474,23491.67,REVENUE,British Telecom PLC
Peterborough City Council,"Cultural, Environmental and Planning Services",Community Development,Supplies and Services,06/07/2011,390605,19782.98,REVENUE,British Telecom PLC
Peterborough City Council,Children's & Education Services - Children's Social Care,Other Children's & Families Services,Employees,06/07/2011,390613,1347.84,REVENUE,Medicare First
Peterborough City Council,Support Services,Support Services,Employees,06/07/2011,390750,1108.31,REVENUE,Venn Group Ltd
Peterborough City Council,"Cultural, Environmental and Planning Services","Cemetery, Crematorium & Mortuary Services",Supplies and Services,06/07/2011,390758,1428,REVENUE,"Strickland, Mr A M"
Peterborough City Council,Children's & Education Services - Children's Social Care,Children Looked After,Supplies and Services - Transfer Payments,06/07/2011,390770,86727.5,REVENUE,"Alderwood, LLA Ltd"
Peterborough City Council,Children's & Education Services - Education,Secondary,Supplies and Services,06/07/2011,390773,5261.59,REVENUE,IIC by Education (P'boro) Ltd
Peterborough City Council,Children's & Education Services - Education,Secondary,Supplies and Services,06/07/2011,390775,22418.88,REVENUE,IIC by Education (P'boro) Ltd
Peterborough City Council,"Cultural, Environmental and Planning Services","Cemetery, Crematorium & Mortuary Services",Supplies and Services,06/07/2011,390779,589.64,REVENUE,Konica Minolta Bus.Sol. East Ltd
Peterborough City Council,Children's & Education Services - Children's Social Care,Support Services & Management Costs,Supplies and Services,06/07/2011,390781,558,REVENUE,Cellmark
Peterborough City Council,Children's & Education Services - Children's Social Care,Other Children's & Families Services,Third Party Payments,06/07/2011,390784,4944.64,REVENUE,Family Voice Peterborough
Peterborough City Council,Deficit/(Surplus) on Trading Undertakings,Trading Account Surpluses & Deficits,Supplies and Services,06/07/2011,390839,2874.24,REVENUE,A S C Metals Ltd
Peterborough City Council,Deficit/(Surplus) on Trading Undertakings,Trading Account Surpluses & Deficits,Transport,06/07/2011,390846,1148,REVENUE,Apex Training Services
Peterborough City Council,Children's & Education Services - Children's Social Care,Support Services & Management Costs,Supplies and Services,06/07/2011,390847,540,REVENUE,Redacted Personal Data
Peterborough City Council,Capital,Capital,Capital Pending Update to BS,06/07/2011,390861,5039.5,CAPITAL,Volker Highways MEWS Ltd
Peterborough City Council,Children's & Education Services - Children's Social Care,Other Children's & Families Services,Supplies and Services,06/07/2011,390867,551.25,REVENUE,DA Rosalia Hotel
Peterborough City Council,Support Services,Support Services,Third Party Payments,06/07/2011,390874,1000,REVENUE,Peterborough Training Company Ltd
Peterborough City Council,Children's & Education Services - Children's Social Care,Support Services & Management Costs,Supplies and Services,06/07/2011,390925,643.5,REVENUE,N & S Consultants Ltd
Peterborough City Council,Support Services,Support Services,Supplies and Services,06/07/2011,390957,102086.4,REVENUE,Danwood Group Limited
Peterborough City Council,"Cultural, Environmental and Planning Services",Waste Collection,Supplies and Services,06/07/2011,390989,2362.5,REVENUE,H W Martin Waste Ltd
Peterborough City Council,"Cultural, Environmental and Planning Services",Waste Collection,Supplies and Services,06/07/2011,390990,1024.05,REVENUE,H W Martin Waste Ltd
Peterborough City Council,"Cultural, Environmental and Planning Services",Waste Collection,Supplies and Services,06/07/2011,391018,10067.49,REVENUE,H W Martin Waste Ltd
Peterborough City Council,Deficit/(Surplus) on Trading Undertakings,Trading Account Surpluses & Deficits,Supplies and Services,06/07/2011,391033,874.03,REVENUE,Barron Clark Castings Ltd
Peterborough City Council,"Highways, Roads & Transport Services","Transport planning, policy and strategy",Employees,06/07/2011,391043,1370.4,REVENUE,Hays Specialist Recruitment Ltd
Peterborough City Council,"Cultural, Environmental and Planning Services",Community Development,Third Party Payments,06/07/2011,391046,11517.43,REVENUE,Dept for Communities & Local Government
Peterborough City Council,Children's & Education Services - Education,Non-School Funding,Employees,06/07/2011,391070,7781.4,REVENUE,Top Class Tutors
Peterborough City Council,Children's & Education Services - Education,Secondary,Employees,06/07/2011,391071,1920,REVENUE,Top Class Tutors
Peterborough City Council,"Highways, Roads & Transport Services",Regulatory services,Supplies and Services,06/07/2011,391102,1122.42,REVENUE,VIP-System Ltd
Peterborough City Council,Capital,Capital,Capital Pending Update to BS,06/07/2011,391105,2000,CAPITAL,Sparx Youth Project
Peterborough City Council,Corporate & Democratic Core,Democratic Representation & Managemetn,Supplies and Services,06/07/2011,391106,2232.06,REVENUE,Baileys of Peterborough Ltd
Peterborough City Council,"Cultural, Environmental and Planning Services",Waste Collection,Supplies and Services,06/07/2011,391107,4252.76,REVENUE,H W Martin Waste Ltd
Peterborough City Council,Children's & Education Services - Education,Non-School Funding,Supplies and Services,06/07/2011,391113,3588,REVENUE,Foundry Mountain Activities Ltd
Peterborough City Council,Support Services,Support Services,Transport,06/07/2011,391124,1512,REVENUE,Get Smart
Peterborough City Council,"Highways, Roads & Transport Services","Transport planning, policy and strategy",Employees,06/07/2011,391359,1098,REVENUE,Randstad CPE
Peterborough City Council,More than one Service Area Category,More than one Service Division,More than one Expenses Type,06/07/2011,391813,1727.14,REVENUE,Hays Specialist Recruitment Ltd
Peterborough City Council,Children's & Education Services - Children's Social Care,Family Support Services,Employees,06/07/2011,391825,1071.24,REVENUE,Swim
Peterborough City Council,Children's & Education Services - Children's Social Care,Support Services & Management Costs,Supplies and Services,06/07/2011,391831,3540,REVENUE,Redacted Personal Data
Peterborough City Council,Children's & Education Services - Education,Non-School Funding,Supplies and Services,06/07/2011,391851,2444.88,REVENUE,Research Machines Plc
Peterborough City Council,Children's & Education Services - Children's Social Care,Children Looked After,Employees,06/07/2011,391855,12636,REVENUE,Jane Scannell Ltd
Peterborough City Council,"Cultural, Environmental and Planning Services",Economic Development,Employees,06/07/2011,391891,1227.6,REVENUE,Hays Specialist Recruitment Ltd
Peterborough City Council,Support Services,Support Services,Supplies and Services,06/07/2011,391896,7980,REVENUE,Ntrinsic Consulting Europe Ltd
Peterborough City Council,"Cultural, Environmental and Planning Services",Economic Development,Employees,06/07/2011,391904,1512,REVENUE,Hays Specialist Recruitment Ltd
Peterborough City Council,Support Services,Support Services,Supplies and Services,06/07/2011,391927,666,REVENUE,Key People Ltd
Peterborough City Council,Housing Services,Private Sector Housing Renewal,Supplies and Services,06/07/2011,391951,969,REVENUE,B S Builders & Carpenters
Peterborough City Council,More than one Service Area Category,More than one Service Division,Balance Sheet,06/07/2011,391973,4319.4,Balance Sheet,IIC by Education (P'boro) Ltd
Peterborough City Council,Children's & Education Services - Children's Social Care,Children Looked After,Supplies and Services,06/07/2011,392254,520,REVENUE,Excell Network Solutions Ltd
Peterborough City Council,Court Services,Coroner's Court Service,Supplies and Services,06/07/2011,392272,696,REVENUE,Sheffield Teaching Hospitals NHS Fdtn Trust
Peterborough City Council,Children's & Education Services - Children's Social Care,Youth Justice,Supplies and Services,06/07/2011,392307,634.08,REVENUE,CINTRA Ltd
Peterborough City Council,Children's & Education Services - Children's Social Care,Other Children's & Families Services,Supplies and Services,06/07/2011,392325,968.64,REVENUE,CINTRA Ltd
Peterborough City Council,Children's & Education Services - Children's Social Care,Other Children's & Families Services,Supplies and Services,06/07/2011,392331,611.04,REVENUE,CINTRA Ltd
Peterborough City Council,Children's & Education Services - Children's Social Care,Other Children's & Families Services,Supplies and Services,06/07/2011,392332,791.52,REVENUE,CINTRA Ltd
Peterborough City Council,Support Services,Support Services,Supplies and Services,06/07/2011,392351,559.12,REVENUE,O2 (UK) Ltd
Peterborough City Council,"Highways, Roads & Transport Services",Traffic management & Road Safety,Supplies and Services,06/07/2011,392356,602.32,REVENUE,Cambridgeshire County Council
Peterborough City Council,Corporate & Democratic Core,Democratic Representation & Managemetn,Supplies and Services,06/07/2011,392408,560.62,REVENUE,Everything Everywhere Ltd
Peterborough City Council,Corporate & Democratic Core,Corporate Management,Supplies and Services,06/07/2011,392414,1179.01,REVENUE,Everything Everywhere Ltd
Peterborough City Council,More than one Service Area Category,More than one Service Division,More than one Expenses Type,06/07/2011,392416,32664.88,"Mixture of Capital, Revenue and/or Balance Sheet",Ringway Infrastructure Services
Peterborough City Council,Support Services,Support Services & Management Costs,Supplies and Services,06/07/2011,392417,2296.04,REVENUE,Everything Everywhere Ltd
Peterborough City Council,Children's & Education Services - Children's Social Care,Support Services & Management Costs,Supplies and Services,06/07/2011,392419,3844.48,REVENUE,Everything Everywhere Ltd
Peterborough City Council,Children's & Education Services - Education,Non-School Funding,Supplies and Services,06/07/2011,392491,723.6,REVENUE,CINTRA Ltd
Peterborough City Council,Capital,Capital,Capital Pending Update to BS,06/07/2011,392506,84579.6,CAPITAL,E N Suiter & Sons Ltd
Peterborough City Council,Support Services,Support Services,Premises,06/07/2011,392591,574.63,REVENUE,NB Real Estate
Peterborough City Council,More than one Service Area Category,More than one Service Division,Supplies and Services,06/07/2011,392657,1392.04,REVENUE,TNT Post Midlands Ltd
Peterborough City Council,"Cultural, Environmental and Planning Services",Development Control,Supplies and Services,06/07/2011,392671,500,REVENUE,Redacted Personal Data
Peterborough City Council,Deficit/(Surplus) on Trading Undertakings,Trading Account Surpluses & Deficits,Supplies and Services,06/07/2011,393173,1574.46,REVENUE,Chris Groome Decorating
Peterborough City Council,Children's & Education Services - Children's Social Care,Support Services & Management Costs,Employees,06/07/2011,393189,991.08,REVENUE,Reconstruct
Peterborough City Council,Children's & Education Services - Children's Social Care,Support Services & Management Costs,Employees,06/07/2011,393191,1080,REVENUE,Reconstruct
Peterborough City Council,Support Services,Support Services,Supplies and Services,06/07/2011,393213,4740,REVENUE,Idox Software Ltd
Peterborough City Council,Deficit/(Surplus) on Trading Undertakings,Trading Account Surpluses & Deficits,Supplies and Services,06/07/2011,393239,2651.04,REVENUE,Barron Clark Castings Ltd
Peterborough City Council,Deficit/(Surplus) on Trading Undertakings,Trading Account Surpluses & Deficits,Supplies and Services,06/07/2011,393240,793.15,REVENUE,Barron Clark Castings Ltd
Peterborough City Council,Deficit/(Surplus) on Trading Undertakings,Trading Account Surpluses & Deficits,Supplies and Services,06/07/2011,393241,517.55,REVENUE,Barron Clark Castings Ltd
Peterborough City Council,"Cultural, Environmental and Planning Services","Cemetery, Crematorium & Mortuary Services",Supplies and Services,06/07/2011,393253,1257.2,REVENUE,Integra ICT Ltd
Peterborough City Council,Adult Social Care,Adult Social Care,Third Party Payments,06/07/2011,393284,3305909.1,REVENUE,Peterborough PCT
Peterborough City Council,Housing Services,Homelessness,Supplies and Services,06/07/2011,393308,31009.54,REVENUE,Northgate Information Solutions
Peterborough City Council,Children's & Education Services - Education,Primary,Supplies and Services,06/07/2011,393353,2250,REVENUE,Redacted Personal Data
Peterborough City Council,"Cultural, Environmental and Planning Services",Economic Development,Third Party Payments,06/07/2011,393360,4500,REVENUE,Peterborough Womens Centre
Peterborough City Council,"Cultural, Environmental and Planning Services",Economic Development,Supplies and Services,06/07/2011,393368,3000,REVENUE,Pinsent Masons
Peterborough City Council,Deficit/(Surplus) on Trading Undertakings,Trading Account Surpluses & Deficits,Supplies and Services,06/07/2011,393372,793.15,REVENUE,Barron Clark Castings Ltd
Peterborough City Council,Deficit/(Surplus) on Trading Undertakings,Trading Account Surpluses & Deficits,Supplies and Services,06/07/2011,393373,625.87,REVENUE,Barron Clark Castings Ltd
Peterborough City Council,"Cultural, Environmental and Planning Services",Economic Development,Third Party Payments,06/07/2011,393375,11775,REVENUE,Age Concern Peterborough.
Peterborough City Council,"Cultural, Environmental and Planning Services",Economic Development,Third Party Payments,06/07/2011,393376,4962.5,REVENUE,Age Concern Peterborough.
Peterborough City Council,"Cultural, Environmental and Planning Services",Economic Development,Third Party Payments,06/07/2011,393377,3500,REVENUE,Age Concern Peterborough.
Peterborough City Council,"Cultural, Environmental and Planning Services",Economic Development,Third Party Payments,06/07/2011,393381,1250,REVENUE,Peterborough Womens Aid
Peterborough City Council,"Cultural, Environmental and Planning Services",Economic Development,Third Party Payments,06/07/2011,393385,16191,REVENUE,Peterborough Womens Aid
Peterborough City Council,Children's & Education Services - Education,Non-School Funding,Transport,06/07/2011,393408,792,REVENUE,Goldstar Cabs Ltd
Peterborough City Council,Children's & Education Services - Education,Non-School Funding,Transport,06/07/2011,393410,1287,REVENUE,Goldstar Cabs Ltd
Peterborough City Council,Children's & Education Services - Education,Non-School Funding,Transport,06/07/2011,393420,811.2,REVENUE,Redacted Personal Data
Peterborough City Council,Capital,Capital,Capital Pending Update to BS,06/07/2011,393425,13405.2,CAPITAL,Pinsent Masons
Peterborough City Council,Support Services,Support Services,Supplies and Services,06/07/2011,393426,20885.4,REVENUE,Pinsent Masons
Peterborough City Council,Capital,Capital,Capital Pending Update to BS,06/07/2011,393428,22302,CAPITAL,Pinsent Masons
Peterborough City Council,Children's & Education Services - Children's Social Care,Children Looked After,Supplies and Services - Transfer Payments,06/07/2011,393445,532.56,REVENUE,Redacted Personal Data
Peterborough City Council,Children's & Education Services - Children's Social Care,Other Children's & Families Services,Supplies and Services - Transfer Payments,06/07/2011,393467,600,REVENUE,Redacted Personal Data
Peterborough City Council,Children's & Education Services - Children's Social Care,Other Children's & Families Services,Supplies and Services - Transfer Payments,06/07/2011,393468,613.6,REVENUE,Redacted Personal Data
Peterborough City Council,Children's & Education Services - Children's Social Care,Children Looked After,Supplies and Services - Transfer Payments,06/07/2011,393588,616.18,REVENUE,Redacted Personal Data
Peterborough City Council,Children's & Education Services - Children's Social Care,Children Looked After,Supplies and Services - Transfer Payments,06/07/2011,393589,560.98,REVENUE,Redacted Personal Data
Peterborough City Council,Children's & Education Services - Children's Social Care,Children Looked After,Supplies and Services - Transfer Payments,06/07/2011,393590,560.98,REVENUE,Redacted Personal Data
Peterborough City Council,Children's & Education Services - Children's Social Care,Children Looked After,Supplies and Services - Transfer Payments,06/07/2011,393591,529.9,REVENUE,Redacted Personal Data
Peterborough City Council,Children's & Education Services - Children's Social Care,Children Looked After,Supplies and Services - Transfer Payments,06/07/2011,393592,560.98,REVENUE,Redacted Personal Data
Peterborough City Council,Children's & Education Services - Children's Social Care,Children Looked After,Supplies and Services - Transfer Payments,06/07/2011,393593,529.9,REVENUE,Redacted Personal Data
Peterborough City Council,Children's & Education Services - Children's Social Care,Children Looked After,Supplies and Services - Transfer Payments,06/07/2011,393595,529.9,REVENUE,Redacted Personal Data
Peterborough City Council,Children's & Education Services - Children's Social Care,Children Looked After,Supplies and Services - Transfer Payments,06/07/2011,393596,529.9,REVENUE,Redacted Personal Data
Peterborough City Council,Children's & Education Services - Children's Social Care,Children Looked After,Supplies and Services - Transfer Payments,06/07/2011,393597,529.9,REVENUE,Redacted Personal Data
Peterborough City Council,Children's & Education Services - Children's Social Care,Children Looked After,Supplies and Services - Transfer Payments,06/07/2011,393598,529.9,REVENUE,Redacted Personal Data
Peterborough City Council,Children's & Education Services - Children's Social Care,Children Looked After,Supplies and Services - Transfer Payments,06/07/2011,393599,529.9,REVENUE,Redacted Personal Data
Peterborough City Council,Children's & Education Services - Children's Social Care,Children Looked After,Supplies and Services - Transfer Payments,06/07/2011,393600,529.9,REVENUE,Redacted Personal Data
Peterborough City Council,Children's & Education Services - Children's Social Care,Children Looked After,Supplies and Services - Transfer Payments,06/07/2011,393603,560.98,REVENUE,Redacted Personal Data
Peterborough City Council,Children's & Education Services - Children's Social Care,Children Looked After,Supplies and Services - Transfer Payments,06/07/2011,393604,560.98,REVENUE,Redacted Personal Data
Peterborough City Council,Children's & Education Services - Children's Social Care,Children Looked After,Supplies and Services - Transfer Payments,06/07/2011,393606,529.9,REVENUE,Redacted Personal Data
Peterborough City Council,Children's & Education Services - Children's Social Care,Children Looked After,Supplies and Services - Transfer Payments,06/07/2011,393608,560.98,REVENUE,Redacted Personal Data
Peterborough City Council,Children's & Education Services - Children's Social Care,Children Looked After,Supplies and Services - Transfer Payments,06/07/2011,393609,560.98,REVENUE,Redacted Personal Data
Peterborough City Council,Children's & Education Services - Children's Social Care,Children Looked After,Supplies and Services - Transfer Payments,06/07/2011,393610,529.9,REVENUE,Redacted Personal Data
Peterborough City Council,Children's & Education Services - Children's Social Care,Children Looked After,Supplies and Services - Transfer Payments,06/07/2011,393611,707.42,REVENUE,Redacted Personal Data
Peterborough City Council,Children's & Education Services - Children's Social Care,Children Looked After,Supplies and Services - Transfer Payments,06/07/2011,393612,529.9,REVENUE,Redacted Personal Data
Peterborough City Council,Children's & Education Services - Children's Social Care,Children Looked After,Supplies and Services - Transfer Payments,06/07/2011,393615,529.9,REVENUE,Redacted Personal Data
Peterborough City Council,Children's & Education Services - Children's Social Care,Children Looked After,Supplies and Services - Transfer Payments,06/07/2011,393616,529.9,REVENUE,Redacted Personal Data
Peterborough City Council,Children's & Education Services - Children's Social Care,Children Looked After,Supplies and Services - Transfer Payments,06/07/2011,393617,529.9,REVENUE,Redacted Personal Data
Peterborough City Council,Children's & Education Services - Children's Social Care,Children Looked After,Supplies and Services - Transfer Payments,06/07/2011,393623,626.43,REVENUE,Redacted Personal Data
Peterborough City Council,Children's & Education Services - Children's Social Care,Children Looked After,Supplies and Services - Transfer Payments,06/07/2011,393627,560.98,REVENUE,Redacted Personal Data
Peterborough City Council,Children's & Education Services - Children's Social Care,Children Looked After,Supplies and Services - Transfer Payments,06/07/2011,393628,885.08,REVENUE,Redacted Personal Data
Peterborough City Council,Children's & Education Services - Children's Social Care,Children Looked After,Supplies and Services - Transfer Payments,06/07/2011,393631,529.9,REVENUE,Redacted Personal Data
Peterborough City Council,Children's & Education Services - Children's Social Care,Children Looked After,Supplies and Services - Transfer Payments,06/07/2011,393632,529.9,REVENUE,Redacted Personal Data
Peterborough City Council,Children's & Education Services - Children's Social Care,Children Looked After,Supplies and Services - Transfer Payments,06/07/2011,393634,529.9,REVENUE,Redacted Personal Data
Peterborough City Council,Children's & Education Services - Children's Social Care,Children Looked After,Supplies and Services - Transfer Payments,06/07/2011,393639,560.98,REVENUE,Redacted Personal Data
Peterborough City Council,Children's & Education Services - Children's Social Care,Children Looked After,Supplies and Services - Transfer Payments,06/07/2011,393645,529.9,REVENUE,Redacted Personal Data
Peterborough City Council,Children's & Education Services - Children's Social Care,Children Looked After,Supplies and Services - Transfer Payments,06/07/2011,393650,560.98,REVENUE,Redacted Personal Data
Peterborough City Council,Children's & Education Services - Children's Social Care,Children Looked After,Supplies and Services - Transfer Payments,06/07/2011,393651,589.19,REVENUE,Redacted Personal Data
Peterborough City Council,Children's & Education Services - Children's Social Care,Children Looked After,Supplies and Services - Transfer Payments,06/07/2011,393669,529.9,REVENUE,Redacted Personal Data
Peterborough City Council,Children's & Education Services - Children's Social Care,Family Support Services,Supplies and Services,06/07/2011,393681,1148.22,REVENUE,Redacted Personal Data
Peterborough City Council,Children's & Education Services - Children's Social Care,Children Looked After,Supplies and Services - Transfer Payments,06/07/2011,393700,529.9,REVENUE,Redacted Personal Data
Peterborough City Council,Children's & Education Services - Children's Social Care,Children Looked After,Supplies and Services - Transfer Payments,06/07/2011,393704,1444.16,REVENUE,Redacted Personal Data
Peterborough City Council,Children's & Education Services - Children's Social Care,Children Looked After,Supplies and Services - Transfer Payments,06/07/2011,393706,529.9,REVENUE,Redacted Personal Data
Peterborough City Council,Children's & Education Services - Children's Social Care,Children Looked After,Supplies and Services - Transfer Payments,06/07/2011,393713,885.08,REVENUE,Redacted Personal Data
Peterborough City Council,Children's & Education Services - Children's Social Care,Children Looked After,Supplies and Services - Transfer Payments,06/07/2011,393715,885.08,REVENUE,Redacted Personal Data
Peterborough City Council,Children's & Education Services - Children's Social Care,Children Looked After,Supplies and Services - Transfer Payments,06/07/2011,393716,885.08,REVENUE,Redacted Personal Data
Peterborough City Council,Children's & Education Services - Children's Social Care,Children Looked After,Supplies and Services - Transfer Payments,06/07/2011,393717,885.08,REVENUE,Redacted Personal Data
Peterborough City Council,Children's & Education Services - Children's Social Care,Children Looked After,Supplies and Services - Transfer Payments,06/07/2011,393718,885.08,REVENUE,Redacted Personal Data
Peterborough City Council,Children's & Education Services - Children's Social Care,Children Looked After,Supplies and Services - Transfer Payments,06/07/2011,393723,529.9,REVENUE,Redacted Personal Data
Peterborough City Council,Children's & Education Services - Children's Social Care,Children Looked After,Supplies and Services - Transfer Payments,06/07/2011,393727,560.98,REVENUE,Redacted Personal Data
Peterborough City Council,Children's & Education Services - Children's Social Care,Children Looked After,Supplies and Services - Transfer Payments,06/07/2011,393733,529.9,REVENUE,Redacted Personal Data
Peterborough City Council,Children's & Education Services - Children's Social Care,Children Looked After,Supplies and Services - Transfer Payments,06/07/2011,393747,529.9,REVENUE,Redacted Personal Data
Peterborough City Council,Children's & Education Services - Children's Social Care,Children Looked After,Supplies and Services - Transfer Payments,06/07/2011,393748,560.98,REVENUE,Redacted Personal Data
Peterborough City Council,Children's & Education Services - Children's Social Care,Children Looked After,Supplies and Services - Transfer Payments,06/07/2011,393784,559.24,REVENUE,Redacted Personal Data
Peterborough City Council,Children's & Education Services - Children's Social Care,Children Looked After,Supplies and Services - Transfer Payments,06/07/2011,393787,571.83,REVENUE,Redacted Personal Data
Peterborough City Council,Children's & Education Services - Children's Social Care,Children Looked After,Supplies and Services - Transfer Payments,06/07/2011,393794,560.98,REVENUE,Redacted Personal Data
Peterborough City Council,Children's & Education Services - Children's Social Care,Children Looked After,Supplies and Services - Transfer Payments,06/07/2011,393799,835.71,REVENUE,Redacted Personal Data
Peterborough City Council,Children's & Education Services - Children's Social Care,Children Looked After,Supplies and Services - Transfer Payments,06/07/2011,393801,620.3,REVENUE,Redacted Personal Data
Peterborough City Council,Children's & Education Services - Education,Non-School Funding,Supplies and Services,06/07/2011,393816,885,REVENUE,Redacted Personal Data
Peterborough City Council,Support Services,Support Services,Supplies and Services,06/07/2011,393834,9720,REVENUE,AMTEC Consulting Plc
Peterborough City Council,Capital,Capital,Capital Pending Update to BS,06/07/2011,393836,68729.4,CAPITAL,AMTEC Consulting Plc
Peterborough City Council,Support Services,Support Services,Supplies and Services,06/07/2011,393838,10080,REVENUE,AMTEC Consulting Plc
Peterborough City Council,Capital,Capital,Capital Pending Update to BS,06/07/2011,393840,16086,CAPITAL,AMTEC Consulting Plc
Peterborough City Council,"Cultural, Environmental and Planning Services",Economic Development,Supplies and Services,06/07/2011,393841,22626.14,REVENUE,AMTEC Consulting Plc
Peterborough City Council,Support Services,Support Services,Supplies and Services,06/07/2011,393842,11067,REVENUE,AMTEC Consulting Plc
Peterborough City Council,Support Services,Support Services,Supplies and Services,06/07/2011,393843,20412,REVENUE,AMTEC Consulting Plc
Peterborough City Council,Support Services,Support Services,Supplies and Services,06/07/2011,393844,61554,REVENUE,AMTEC Consulting Plc
Peterborough City Council,Support Services,Support Services & Management Costs,Supplies and Services,06/07/2011,393846,1440,REVENUE,AMTEC Consulting Plc
Peterborough City Council,Capital,Capital,Capital Pending Update to BS,06/07/2011,393848,40391.4,CAPITAL,AMTEC Consulting Plc
Peterborough City Council,Support Services,Support Services,Supplies and Services,06/07/2011,393849,14580,REVENUE,AMTEC Consulting Plc
Peterborough City Council,Capital,Capital,Capital Pending Update to BS,06/07/2011,393850,7920,CAPITAL,AMTEC Consulting Plc
Peterborough City Council,More than one Service Area Category,More than one Service Division,More than one Expenses Type,06/07/2011,393852,31459.39,"Mixture of Capital, Revenue and/or Balance Sheet",AMTEC Consulting Plc
Peterborough City Council,Children's & Education Services - Education,Non-School Funding,Supplies and Services,06/07/2011,393855,5716.8,REVENUE,AMTEC Consulting Plc
Peterborough City Council,Support Services,Support Services,Supplies and Services,06/07/2011,393856,8640,REVENUE,AMTEC Consulting Plc
Peterborough City Council,Support Services,Support Services,Supplies and Services,06/07/2011,393857,11520,REVENUE,AMTEC Consulting Plc
Peterborough City Council,Support Services,Support Services,Supplies and Services,06/07/2011,393859,5313.6,REVENUE,AMTEC Consulting Plc
Peterborough City Council,Support Services,Support Services,Supplies and Services,06/07/2011,393860,58638,REVENUE,AMTEC Consulting Plc
Peterborough City Council,Support Services,Support Services,Supplies and Services,06/07/2011,393861,5716.8,REVENUE,AMTEC Consulting Plc
Peterborough City Council,Support Services,Support Services,Supplies and Services,06/07/2011,393862,12415.2,REVENUE,AMTEC Consulting Plc
Peterborough City Council,Deficit/(Surplus) on Trading Undertakings,Trading Account Surpluses & Deficits,Supplies and Services,06/07/2011,393863,582,REVENUE,AMTEC Consulting Plc
Peterborough City Council,Deficit/(Surplus) on Trading Undertakings,Trading Account Surpluses & Deficits,Supplies and Services,06/07/2011,393864,9439.2,REVENUE,AMTEC Consulting Plc
Peterborough City Council,"Cultural, Environmental and Planning Services",Environmental Initiatives,Supplies and Services,06/07/2011,393865,8806.8,REVENUE,AMTEC Consulting Plc
Peterborough City Council,Central Services to the Public,Local Tax,Supplies and Services,06/07/2011,393866,24432,REVENUE,AMTEC Consulting Plc
Peterborough City Council,Support Services,Support Services,Premises,06/07/2011,393877,3177.13,REVENUE,Southern Electric
Peterborough City Council,Support Services,Support Services,Premises,06/07/2011,393878,5793.28,REVENUE,Southern Electric
Peterborough City Council,Support Services,Support Services,Premises,06/07/2011,393899,667.07,REVENUE,Eastern Shires Purchasing Organisation
Peterborough City Council,Children's & Education Services - Children's Social Care,Children Looked After,Supplies and Services - Transfer Payments,08/07/2011,382419,5785.8,REVENUE,Alliance Foster Care
Peterborough City Council,Children's & Education Services - Children's Social Care,Children Looked After,Supplies and Services - Transfer Payments,08/07/2011,382692,3105.27,REVENUE,National Fostering Agency
Peterborough City Council,Children's & Education Services - Children's Social Care,Children Looked After,Supplies and Services - Transfer Payments,08/07/2011,385254,3260.89,REVENUE,Alliance Foster Care
Peterborough City Council,Children's & Education Services - Children's Social Care,Children Looked After,Supplies and Services - Transfer Payments,08/07/2011,385255,2719.01,REVENUE,Alliance Foster Care
Peterborough City Council,Children's & Education Services - Children's Social Care,Other Children's & Families Services,Employees,08/07/2011,390468,1776,REVENUE,Medicare First
Peterborough City Council,Children's & Education Services - Education,All Schools - apportion across sectors,Third Party Payments,08/07/2011,390493,22000,REVENUE,Bridgegate Drug Services
Peterborough City Council,Children's & Education Services - Education,All Schools - apportion across sectors,Third Party Payments,08/07/2011,390497,2500,REVENUE,Bridgegate Drug Services
Peterborough City Council,Children's & Education Services - Education,All Schools - apportion across sectors,Third Party Payments,08/07/2011,390498,8500,REVENUE,Bridgegate Drug Services
Peterborough City Council,Children's & Education Services - Children's Social Care,Other Children's & Families Services,Employees,08/07/2011,390611,1731.6,REVENUE,Medicare First
Peterborough City Council,"Cultural, Environmental and Planning Services",Waste Collection,Supplies and Services,08/07/2011,390985,30839.6,REVENUE,H W Martin Waste Ltd
Peterborough City Council,Deficit/(Surplus) on Trading Undertakings,Trading Account Surpluses & Deficits,Supplies and Services,08/07/2011,391974,1152,REVENUE,Perkins Engines Co Ltd
Peterborough City Council,Children's & Education Services - Children's Social Care,Children Looked After,Supplies and Services - Transfer Payments,08/07/2011,391993,3429,REVENUE,Archway Care Ltd
Peterborough City Council,Support Services,Support Services,Premises,08/07/2011,392330,715.09,REVENUE,Zurich Insurance Company
Peterborough City Council,Support Services,Support Services,Premises,08/07/2011,392687,-12479.12,REVENUE,Zurich Insurance Company
Peterborough City Council,Support Services,Support Services,Premises,08/07/2011,392688,1332,REVENUE,ACE European Group Ltd
Peterborough City Council,More than one Service Area Category,More than one Service Division,Balance Sheet,08/07/2011,392713,5767.94,Balance Sheet,Brit Insurance
Peterborough City Council,More than one Service Area Category,More than one Service Division,Balance Sheet,08/07/2011,392715,5500,Balance Sheet,Redacted Personal Data
Peterborough City Council,More than one Service Area Category,More than one Service Division,More than one Expenses Type,08/07/2011,392894,26340.44,"Mixture of Capital, Revenue and/or Balance Sheet",Ringway Infrastructure Services
Peterborough City Council,Support Services,Support Services,Premises,08/07/2011,392903,2362.53,REVENUE,Zurich Insurance Company
Peterborough City Council,Support Services,Support Services,Premises,08/07/2011,392904,25637.96,REVENUE,Zurich Insurance Company
Peterborough City Council,More than one Service Area Category,More than one Service Division,More than one Expenses Type,08/07/2011,392924,236554.31,"Mixture of Capital, Revenue and/or Balance Sheet",Ringway Infrastructure Services
Peterborough City Council,Housing Services,Housing Strategy,Supplies and Services,08/07/2011,393245,768,REVENUE,Pinsent Masons
Peterborough City Council,Housing Services,Housing Strategy,Supplies and Services,08/07/2011,393247,3000,REVENUE,Pinsent Masons
Peterborough City Council,Children's & Education Services - Children's Social Care,Children Looked After,More than one Expenses Type,08/07/2011,393261,9247.08,REVENUE,Lovell's Hall
Peterborough City Council,Children's & Education Services - Children's Social Care,Children Looked After,More than one Expenses Type,08/07/2011,393262,9247.08,REVENUE,Lovell's Hall
Peterborough City Council,Central Services to the Public,Elections,Supplies and Services,08/07/2011,393851,1473.24,REVENUE,Shaw & Sons Ltd
Peterborough City Council,Children's & Education Services - Education,Non-School Funding,Supplies and Services,08/07/2011,393875,580.8,REVENUE,Little Stars Day Nursery
Peterborough City Council,"Cultural, Environmental and Planning Services",Economic Development,Third Party Payments,08/07/2011,393923,5570,REVENUE,WRVS
Peterborough City Council,Capital,Capital,Capital Pending Update to BS,08/07/2011,393954,9684,CAPITAL,Richard Rogers Conservation Ltd
Peterborough City Council,Support Services,Support Services,Supplies and Services,08/07/2011,393961,11560,REVENUE,First Data Commercial Services Ltd
Peterborough City Council,Corporate & Democratic Core,Democratic Representation & Managemetn,Supplies and Services,08/07/2011,393990,28578,REVENUE,East of England LGA
Peterborough City Council,Deficit/(Surplus) on Trading Undertakings,Trading Account Surpluses & Deficits,Supplies and Services,08/07/2011,393998,908.82,REVENUE,Barron Clark Castings Ltd
Peterborough City Council,Children's & Education Services - Children's Social Care,Children Looked After,Supplies and Services,08/07/2011,394035,1125,REVENUE,Redacted Personal Data
Peterborough City Council,Children's & Education Services - Education,Non-School Funding,Transport,08/07/2011,394070,575.52,REVENUE,Peterborough Cars
Peterborough City Council,Children's & Education Services - Education,Non-School Funding,Transport,08/07/2011,394071,1366.86,REVENUE,Peterborough Cars
Peterborough City Council,Children's & Education Services - Education,Non-School Funding,Transport,08/07/2011,394090,1578,REVENUE,Peterborough Cars
Peterborough City Council,Children's & Education Services - Education,Non-School Funding,Transport,08/07/2011,394092,812.4,REVENUE,Peterborough Cars
Peterborough City Council,Children's & Education Services - Education,Non-School Funding,Transport,08/07/2011,394093,1500,REVENUE,Peterborough Cars
Peterborough City Council,Children's & Education Services - Education,Non-School Funding,Transport,08/07/2011,394094,532.8,REVENUE,Peterborough Cars
Peterborough City Council,Children's & Education Services - Education,Non-School Funding,Transport,08/07/2011,394098,984.6,REVENUE,Peterborough Cars
Peterborough City Council,Children's & Education Services - Education,Non-School Funding,Premises,08/07/2011,394118,30000,REVENUE,Vivacity Culture and Leisure
Peterborough City Council,"Highways, Roads & Transport Services",Traffic management & Road Safety,Supplies and Services,08/07/2011,394120,637.78,REVENUE,Wolters Kluwer (UK) Ltd
Peterborough City Council,Children's & Education Services - Children's Social Care,Family Support Services,Third Party Payments,08/07/2011,394122,13762.25,REVENUE,Family Action
Peterborough City Council,Children's & Education Services - Children's Social Care,Family Support Services,Third Party Payments,08/07/2011,394123,18527.25,REVENUE,Family Action
Peterborough City Council,Deficit/(Surplus) on Trading Undertakings,Trading Account Surpluses & Deficits,Supplies and Services,08/07/2011,394128,800.09,REVENUE,Barron Clark Castings Ltd
Peterborough City Council,Deficit/(Surplus) on Trading Undertakings,Trading Account Surpluses & Deficits,Supplies and Services,08/07/2011,394131,890.42,REVENUE,Barron Clark Castings Ltd
Peterborough City Council,Deficit/(Surplus) on Trading Undertakings,Trading Account Surpluses & Deficits,Supplies and Services,08/07/2011,394134,933.6,REVENUE,Barron Clark Castings Ltd
Peterborough City Council,Deficit/(Surplus) on Trading Undertakings,Trading Account Surpluses & Deficits,Supplies and Services,08/07/2011,394135,1225.63,REVENUE,Barron Clark Castings Ltd
Peterborough City Council,Deficit/(Surplus) on Trading Undertakings,Trading Account Surpluses & Deficits,Supplies and Services,08/07/2011,394136,835.22,REVENUE,Barron Clark Castings Ltd
Peterborough City Council,Children's & Education Services - Children's Social Care,Children Looked After,Supplies and Services - Transfer Payments,11/07/2011,383934,3179.24,REVENUE,Fostering Options Ltd
Peterborough City Council,Children's & Education Services - Children's Social Care,Children Looked After,Supplies and Services - Transfer Payments,11/07/2011,383936,3076.68,REVENUE,Fostering Options Ltd
Peterborough City Council,Children's & Education Services - Children's Social Care,Children Looked After,Supplies and Services - Transfer Payments,11/07/2011,387149,3076.68,REVENUE,Fostering Options Ltd
Peterborough City Council,Children's & Education Services - Children's Social Care,Children Looked After,Supplies and Services - Transfer Payments,11/07/2011,390384,2747.31,REVENUE,Nene Valley Fostering Agency
Peterborough City Council,Children's & Education Services - Children's Social Care,Children Looked After,Supplies and Services - Transfer Payments,11/07/2011,390385,2785.71,REVENUE,Nene Valley Fostering Agency
Peterborough City Council,Children's & Education Services - Children's Social Care,Children Looked After,Supplies and Services - Transfer Payments,11/07/2011,390391,2793.43,REVENUE,Nene Valley Fostering Agency
Peterborough City Council,Children's & Education Services - Children's Social Care,Children Looked After,Supplies and Services - Transfer Payments,11/07/2011,390394,3135.43,REVENUE,Nene Valley Fostering Agency
Peterborough City Council,Housing Services,Homelessness,Supplies and Services,11/07/2011,390835,702.55,REVENUE,Euro RSCG Riley Ltd
Peterborough City Council,Housing Services,Homelessness,Supplies and Services,11/07/2011,390858,703.51,REVENUE,Euro RSCG Riley Ltd
Peterborough City Council,Children's & Education Services - Education,Non-School Funding,Supplies and Services,11/07/2011,390888,840,REVENUE,Redacted Personal Data
Peterborough City Council,Children's & Education Services - Children's Social Care,Children Looked After,Employees,11/07/2011,390897,2760,REVENUE,Fostering Network
Peterborough City Council,Deficit/(Surplus) on Trading Undertakings,Trading Account Surpluses & Deficits,Supplies and Services,11/07/2011,390906,579.36,REVENUE,Safetykleen UK Ltd
Peterborough City Council,"Cultural, Environmental and Planning Services",Waste Collection,Supplies and Services,11/07/2011,391108,13027.14,REVENUE,H W Martin Waste Ltd
Peterborough City Council,"Cultural, Environmental and Planning Services",Open Spaces,Supplies and Services,11/07/2011,391109,1380,REVENUE,R J Warren Ltd
Peterborough City Council,Children's & Education Services - Children's Social Care,Children Looked After,Supplies and Services - Transfer Payments,11/07/2011,391118,1826.35,REVENUE,PC Homes
Peterborough City Council,Children's & Education Services - Children's Social Care,Children Looked After,Supplies and Services - Transfer Payments,11/07/2011,391120,690,REVENUE,PC Homes
Peterborough City Council,Children's & Education Services - Education,Non-School Funding,Supplies and Services,11/07/2011,391122,600,REVENUE,Beat This
Peterborough City Council,"Cultural, Environmental and Planning Services",Community Development,Employees,11/07/2011,391348,1248.48,REVENUE,Anne Corder Recruitment
Peterborough City Council,"Highways, Roads & Transport Services","Environmental, Safety & Routine Maintenance",Supplies and Services,11/07/2011,391353,8719.2,REVENUE,Quadrant Security Group Ltd
Peterborough City Council,Children's & Education Services - Education,Secondary,Employees,11/07/2011,391360,3986.4,REVENUE,Top Class Tutors
Peterborough City Council,Children's & Education Services - Education,Non-School Funding,Supplies and Services,11/07/2011,391801,1824,REVENUE,Top Class Tutors
Peterborough City Council,Children's & Education Services - Education,Non-School Funding,Supplies and Services,11/07/2011,391802,1824,REVENUE,Top Class Tutors
Peterborough City Council,Children's & Education Services - Education,Non-School Funding,Supplies and Services,11/07/2011,391803,1824,REVENUE,Top Class Tutors
Peterborough City Council,Children's & Education Services - Education,Non-School Funding,Supplies and Services,11/07/2011,391804,1824,REVENUE,Top Class Tutors
Peterborough City Council,Children's & Education Services - Education,Non-School Funding,Supplies and Services,11/07/2011,391805,1824,REVENUE,Top Class Tutors
Peterborough City Council,Children's & Education Services - Education,Non-School Funding,Supplies and Services,11/07/2011,391806,1008,REVENUE,Top Class Tutors
Peterborough City Council,Children's & Education Services - Education,Non-School Funding,Supplies and Services,11/07/2011,391807,960,REVENUE,Top Class Tutors
Peterborough City Council,"Highways, Roads & Transport Services","Transport planning, policy and strategy",Transport,11/07/2011,391850,1596,REVENUE,Atkins Limited
Peterborough City Council,Children's & Education Services - Children's Social Care,Other Children's & Families Services,Supplies and Services,11/07/2011,391854,2565,REVENUE,The Viewpoint Organisation Ltd
Peterborough City Council,"Highways, Roads & Transport Services","Transport planning, policy and strategy",Transport,11/07/2011,391866,831.7,REVENUE,Atkins Limited
Peterborough City Council,Children's & Education Services - Children's Social Care,Family Support Services,Employees,11/07/2011,391894,14330.19,REVENUE,Peterborough Provider Services
Peterborough City Council,Deficit/(Surplus) on Trading Undertakings,Trading Account Surpluses & Deficits,Supplies and Services,11/07/2011,391919,768,REVENUE,PG Reeves & Sons
Peterborough City Council,Deficit/(Surplus) on Trading Undertakings,Trading Account Surpluses & Deficits,Supplies and Services,11/07/2011,391920,1069.2,REVENUE,PG Reeves & Sons
Peterborough City Council,Capital,Capital,Capital Pending Update to BS,11/07/2011,391921,1304.38,CAPITAL,Atkins Limited
Peterborough City Council,Capital,Capital,Capital Pending Update to BS,11/07/2011,391923,1543.66,CAPITAL,Atkins Limited
Peterborough City Council,Capital,Capital,Capital Pending Update to BS,11/07/2011,391925,18340.13,CAPITAL,Atkins Limited
Peterborough City Council,Capital,Capital,Capital Pending Update to BS,11/07/2011,391926,2446.27,CAPITAL,Atkins Limited
Peterborough City Council,"Highways, Roads & Transport Services","Environmental, Safety & Routine Maintenance",Transport,11/07/2011,391928,10436.83,REVENUE,Atkins Limited
Peterborough City Council,"Highways, Roads & Transport Services",Public Transport,Supplies and Services,11/07/2011,391978,816.07,REVENUE,Veolia Transport UK Ltd
Peterborough City Council,"Cultural, Environmental and Planning Services",Waste Collection,Supplies and Services,11/07/2011,392032,37315,REVENUE,Cambridgeshire County Council
Peterborough City Council,Support Services,Support Services,Supplies and Services,11/07/2011,392316,35346.35,REVENUE,Civica UK Limited
Peterborough City Council,Children's & Education Services - Children's Social Care,Support Services & Management Costs,Supplies and Services,11/07/2011,392437,4200,REVENUE,Redacted Personal Data
Peterborough City Council,Housing Services,Homelessness,Employees,11/07/2011,392439,585.19,REVENUE,Anne Corder Recruitment
Peterborough City Council,"Cultural, Environmental and Planning Services",Planning Policy,Supplies and Services,11/07/2011,392511,952.19,REVENUE,Cambridgeshire County Council
Peterborough City Council,Children's & Education Services - Education,Secondary,Supplies and Services,11/07/2011,392521,4067.92,REVENUE,Shropshire County Council
Peterborough City Council,Housing Services,Homelessness,Employees,11/07/2011,392525,589.15,REVENUE,Anne Corder Recruitment
Peterborough City Council,Housing Services,Homelessness,Employees,11/07/2011,392526,553.56,REVENUE,Anne Corder Recruitment
Peterborough City Council,Corporate & Democratic Core,Corporate Management,Supplies and Services,11/07/2011,392589,4185,REVENUE,Ken Stimpson Community School
Peterborough City Council,More than one Service Area Category,More than one Service Division,Transport,11/07/2011,392645,633.6,REVENUE,R T Enterprises Ltd T/A Royal Taxis
Peterborough City Council,More than one Service Area Category,More than one Service Division,Supplies and Services,11/07/2011,392670,1047.91,REVENUE,TNT Post Midlands Ltd
Peterborough City Council,Children's & Education Services - Education,Non-School Funding,Transport,11/07/2011,392942,3287,REVENUE,Aardvark Coaches
Peterborough City Council,Deficit/(Surplus) on Trading Undertakings,Trading Account Surpluses & Deficits,Supplies and Services,11/07/2011,393015,14887.2,REVENUE,Xmbrace Ltd
Peterborough City Council,Children's & Education Services - Education,Secondary,Supplies and Services,11/07/2011,393355,5464.5,REVENUE,NACRO
Peterborough City Council,Children's & Education Services - Education,Non-School Funding,Transport,11/07/2011,393395,2664.5,REVENUE,Aardvark Coaches
Peterborough City Council,Children's & Education Services - Education,Non-School Funding,Transport,11/07/2011,393396,2637.13,REVENUE,Aardvark Coaches
Peterborough City Council,Children's & Education Services - Education,Non-School Funding,Transport,11/07/2011,393397,2664.5,REVENUE,Aardvark Coaches
Peterborough City Council,Children's & Education Services - Education,Non-School Funding,Transport,11/07/2011,393398,2591.5,REVENUE,Aardvark Coaches
Peterborough City Council,Deficit/(Surplus) on Trading Undertakings,Trading Account Surpluses & Deficits,Transport,11/07/2011,393839,21194.4,REVENUE,Specialist Fleet Services
Peterborough City Council,Deficit/(Surplus) on Trading Undertakings,Trading Account Surpluses & Deficits,Supplies and Services,11/07/2011,393898,3717.6,REVENUE,Robert J Davis Associates
Peterborough City Council,Capital,Capital,Capital Pending Update to BS,11/07/2011,393996,10902,CAPITAL,Arjo Ltd
Peterborough City Council,Capital,Capital,Capital Pending Update to BS,11/07/2011,393997,10447.2,CAPITAL,Arjo Ltd
Peterborough City Council,Children's & Education Services - Children's Social Care,Support Services & Management Costs,Supplies and Services,11/07/2011,394045,540,REVENUE,Smooth Operators (Peterborough) Ltd
Peterborough City Council,Capital,Capital,Capital Pending Update to BS,11/07/2011,394079,66029.68,CAPITAL,Lindum Group Ltd
Peterborough City Council,Children's & Education Services - Education,Non-School Funding,Transport,11/07/2011,394101,3410.5,REVENUE,Shaws Coaches
Peterborough City Council,Children's & Education Services - Children's Social Care,Family Support Services,Third Party Payments,11/07/2011,394121,1000,REVENUE,Family Action
Peterborough City Council,Children's & Education Services - Children's Social Care,Family Support Services,Third Party Payments,11/07/2011,394124,18527.25,REVENUE,Family Action
Peterborough City Council,Support Services,Support Services,Premises,11/07/2011,394142,647.1,REVENUE,Anglian Water
Peterborough City Council,Support Services,Support Services,Premises,11/07/2011,394143,680.74,REVENUE,E.ON Energy
Peterborough City Council,Support Services,Support Services,Premises,11/07/2011,394144,1789.71,REVENUE,Eastern Shires Purchasing Organisation
Peterborough City Council,Support Services,Support Services,Premises,11/07/2011,394145,608.24,REVENUE,Anglian Water
Peterborough City Council,Support Services,Support Services,Premises,11/07/2011,394146,2661.02,REVENUE,Southern Electric
Peterborough City Council,Children's & Education Services - Education,Non-School Funding,Supplies and Services,11/07/2011,394150,708,REVENUE,Bretton Community Pre-School
Peterborough City Council,Children's & Education Services - Education,Non-School Funding,Supplies and Services,11/07/2011,394151,648,REVENUE,Bretton Community Pre-School
Peterborough City Council,Children's & Education Services - Education,Non-School Funding,Supplies and Services,11/07/2011,394152,660,REVENUE,Bretton Community Pre-School
Peterborough City Council,Children's & Education Services - Education,Non-School Funding,Supplies and Services,11/07/2011,394154,780,REVENUE,St Johns C of E Pre-School
Peterborough City Council,Children's & Education Services - Education,Non-School Funding,Supplies and Services,11/07/2011,394155,612,REVENUE,Brookside Playgroup
Peterborough City Council,More than one Service Area Category,More than one Service Division,More than one Expenses Type,11/07/2011,394158,2638.45,REVENUE,Redacted Personal Data
Peterborough City Council,More than one Service Area Category,More than one Service Division,Transport,11/07/2011,394159,1001.7,REVENUE,Redacted Personal Data
Peterborough City Council,Children's & Education Services - Children's Social Care,Children Looked After,Transport,11/07/2011,394161,2166.75,REVENUE,Redacted Personal Data
Peterborough City Council,Children's & Education Services - Children's Social Care,Children Looked After,Transport,11/07/2011,394162,569.25,REVENUE,Redacted Personal Data
Peterborough City Council,More than one Service Area Category,More than one Service Division,Transport,11/07/2011,394163,2227.25,REVENUE,Redacted Personal Data
Peterborough City Council,Children's & Education Services - Children's Social Care,Children Looked After,Transport,11/07/2011,394164,1039.5,REVENUE,Redacted Personal Data
Peterborough City Council,Children's & Education Services - Children's Social Care,Children Looked After,Transport,11/07/2011,394165,1980.9,REVENUE,Redacted Personal Data
Peterborough City Council,Children's & Education Services - Children's Social Care,Children Looked After,Transport,11/07/2011,394168,2402.1,REVENUE,Redacted Personal Data
Peterborough City Council,Children's & Education Services - Children's Social Care,Children Looked After,More than one Expenses Type,11/07/2011,394169,1648.8,REVENUE,Redacted Personal Data
Peterborough City Council,Children's & Education Services - Children's Social Care,Children Looked After,Transport,11/07/2011,394170,525.6,REVENUE,Redacted Personal Data
Peterborough City Council,More than one Service Area Category,More than one Service Division,More than one Expenses Type,11/07/2011,394173,3282,"Mixture of Capital, Revenue and/or Balance Sheet",Allworks Home Improvements Ltd
Peterborough City Council,More than one Service Area Category,More than one Service Division,More than one Expenses Type,11/07/2011,394174,1071.6,"Mixture of Capital, Revenue and/or Balance Sheet",T J Electrical Engineering & Contractors Ltd
Peterborough City Council,More than one Service Area Category,More than one Service Division,More than one Expenses Type,11/07/2011,394175,3660,"Mixture of Capital, Revenue and/or Balance Sheet",FAM Building Contractors LLP
Peterborough City Council,More than one Service Area Category,More than one Service Division,More than one Expenses Type,11/07/2011,394176,5481,"Mixture of Capital, Revenue and/or Balance Sheet",Allworks Home Improvements Ltd
Peterborough City Council,More than one Service Area Category,More than one Service Division,More than one Expenses Type,11/07/2011,394177,4325,"Mixture of Capital, Revenue and/or Balance Sheet",Allworks Home Improvements Ltd
Peterborough City Council,More than one Service Area Category,More than one Service Division,More than one Expenses Type,11/07/2011,394178,7780,"Mixture of Capital, Revenue and/or Balance Sheet",Allworks Home Improvements Ltd
Peterborough City Council,"Cultural, Environmental and Planning Services",Economic Development,Third Party Payments,11/07/2011,394195,10000,REVENUE,Opportunity Peterborough
Peterborough City Council,"Cultural, Environmental and Planning Services",Economic Development,Employees,11/07/2011,394196,5305.69,REVENUE,Opportunity Peterborough
Peterborough City Council,Support Services,Support Services,Supplies and Services,11/07/2011,394201,16813.48,REVENUE,Edenred
Peterborough City Council,Support Services,Support Services,Supplies and Services,11/07/2011,394204,578.62,REVENUE,Edenred
Peterborough City Council,Children's & Education Services - Education,Management and support services,Supplies and Services,11/07/2011,394211,714.06,REVENUE,ADT Fire and Security
Peterborough City Council,Deficit/(Surplus) on Trading Undertakings,Trading Account Surpluses & Deficits,Supplies and Services,11/07/2011,394229,-2400,REVENUE,Xmbrace Ltd
Peterborough City Council,Children's & Education Services - Children's Social Care,Children Looked After,Supplies and Services,11/07/2011,394243,7875,REVENUE,The Regard Partnership Limited
Peterborough City Council,"Cultural, Environmental and Planning Services",Economic Development,Third Party Payments,11/07/2011,394256,21000,REVENUE,Peterborough Workspace Ltd
Peterborough City Council,Children's & Education Services - Children's Social Care,Other Children's & Families Services,Employees,13/07/2011,380206,1382.4,REVENUE,Frontline Staffing Ltd
Peterborough City Council,Children's & Education Services - Children's Social Care,Other Children's & Families Services,Employees,13/07/2011,380208,1598.4,REVENUE,Frontline Staffing Ltd
Peterborough City Council,Children's & Education Services - Children's Social Care,Children Looked After,Supplies and Services - Transfer Payments,13/07/2011,383930,3179.24,REVENUE,Fostering Options Ltd
Peterborough City Council,Children's & Education Services - Children's Social Care,Children Looked After,Supplies and Services - Transfer Payments,13/07/2011,383933,3179.24,REVENUE,Fostering Options Ltd
Peterborough City Council,Children's & Education Services - Children's Social Care,Children Looked After,Supplies and Services - Transfer Payments,13/07/2011,383935,3076.68,REVENUE,Fostering Options Ltd
Peterborough City Council,Children's & Education Services - Children's Social Care,Other Children's & Families Services,Employees,13/07/2011,385434,-1598.4,REVENUE,Frontline Staffing Ltd
Peterborough City Council,Support Services,Support Services,Premises,13/07/2011,385571,1677.6,REVENUE,Beebys Ltd
Peterborough City Council,Support Services,Support Services,Premises,13/07/2011,385580,569.05,REVENUE,Beebys Ltd
Peterborough City Council,Children's & Education Services - Children's Social Care,Children Looked After,Supplies and Services - Transfer Payments,13/07/2011,386202,1020,REVENUE,One Step Accomodation Ltd
Peterborough City Council,Children's & Education Services - Children's Social Care,Children Looked After,Supplies and Services - Transfer Payments,13/07/2011,386915,3076.68,REVENUE,Fostering Options Ltd
Peterborough City Council,Children's & Education Services - Children's Social Care,Children Looked After,Supplies and Services - Transfer Payments,13/07/2011,387148,3076.68,REVENUE,Fostering Options Ltd
Peterborough City Council,Children's & Education Services - Children's Social Care,Children Looked After,Supplies and Services - Transfer Payments,13/07/2011,387755,11400,REVENUE,Lincoln House Childrens Services
Peterborough City Council,Children's & Education Services - Children's Social Care,Support Services & Management Costs,Supplies and Services,13/07/2011,388260,1570.39,REVENUE,Buckles Solicitors LLP
Peterborough City Council,Children's & Education Services - Children's Social Care,Support Services & Management Costs,Supplies and Services,13/07/2011,388262,1188,REVENUE,Buckles Solicitors LLP
Peterborough City Council,Children's & Education Services - Children's Social Care,Family Support Services,Employees,13/07/2011,388593,2583.6,REVENUE,Jenx Ltd
Peterborough City Council,Support Services,Support Services,Premises,13/07/2011,388599,1677.6,REVENUE,Beebys Ltd
Peterborough City Council,Support Services,Support Services,Premises,13/07/2011,388605,720.41,REVENUE,Beebys Ltd
Peterborough City Council,Children's & Education Services - Children's Social Care,Support Services & Management Costs,Supplies and Services,13/07/2011,388971,3150,REVENUE,Redacted Personal Data
Peterborough City Council,Children's & Education Services - Children's Social Care,Other Children's & Families Services,Employees,13/07/2011,389093,1731.6,REVENUE,Evergood Associates
Peterborough City Council,Children's & Education Services - Children's Social Care,Other Children's & Families Services,Employees,13/07/2011,389443,1731.6,REVENUE,Evergood Associates
Peterborough City Council,Support Services,Support Services,Premises,13/07/2011,389534,1677.6,REVENUE,Beebys Ltd
Peterborough City Council,Children's & Education Services - Children's Social Care,Children Looked After,Supplies and Services - Transfer Payments,13/07/2011,390340,11400,REVENUE,Lincoln House Childrens Services
Peterborough City Council,Children's & Education Services - Children's Social Care,Children Looked After,Supplies and Services - Transfer Payments,13/07/2011,390379,2914.29,REVENUE,Nene Valley Fostering Agency
Peterborough City Council,Children's & Education Services - Children's Social Care,Children Looked After,Supplies and Services - Transfer Payments,13/07/2011,390382,2785.71,REVENUE,Nene Valley Fostering Agency
Peterborough City Council,Children's & Education Services - Children's Social Care,Children Looked After,Supplies and Services - Transfer Payments,13/07/2011,390383,2914.29,REVENUE,Nene Valley Fostering Agency
Peterborough City Council,Children's & Education Services - Children's Social Care,Children Looked After,Supplies and Services - Transfer Payments,13/07/2011,390392,3012.09,REVENUE,Nene Valley Fostering Agency
Peterborough City Council,"Cultural, Environmental and Planning Services",Recreation & Sport,Supplies and Services,13/07/2011,390417,665.98,REVENUE,Triple SSS Limited
Peterborough City Council,Children's & Education Services - Children's Social Care,Children Looked After,Supplies and Services - Transfer Payments,13/07/2011,390419,3596.38,REVENUE,IAS TACT
Peterborough City Council,Children's & Education Services - Children's Social Care,Children Looked After,Supplies and Services - Transfer Payments,13/07/2011,390851,13000,REVENUE,Oracle Care Ltd (Region 2)
Peterborough City Council,Children's & Education Services - Children's Social Care,Support Services & Management Costs,Supplies and Services,13/07/2011,390947,5400,REVENUE,HM Courts and Tribunals Service (HMCTS)
Peterborough City Council,More than one Service Area Category,More than one Service Division,Balance Sheet,13/07/2011,390974,7000,Balance Sheet,Graysons with Waton Elam Solicitors
Peterborough City Council,Children's & Education Services - Education,Non-School Funding,Supplies and Services,13/07/2011,391055,855,REVENUE,NACRO
Peterborough City Council,Children's & Education Services - Education,Non-School Funding,Supplies and Services,13/07/2011,391057,855,REVENUE,NACRO
Peterborough City Council,Children's & Education Services - Education,Non-School Funding,Supplies and Services,13/07/2011,391061,889.5,REVENUE,NACRO
Peterborough City Council,Children's & Education Services - Children's Social Care,Children Looked After,Supplies and Services - Transfer Payments,13/07/2011,391067,5528.52,REVENUE,Positive Steps (Care Services) Ltd
Peterborough City Council,"Cultural, Environmental and Planning Services",Recreation & Sport,Supplies and Services,13/07/2011,391115,665.96,REVENUE,Triple SSS Limited
Peterborough City Council,Support Services,Support Services,Supplies and Services,13/07/2011,391369,3000.58,REVENUE,Serco Ltd
Peterborough City Council,Children's & Education Services - Education,Support Services & Management Costs,Supplies and Services,13/07/2011,391372,2280.17,REVENUE,Serco Ltd
Peterborough City Council,"Highways, Roads & Transport Services",Street Lighting,Supplies and Services,13/07/2011,391787,32132.04,REVENUE,Volker Highways MEWS Ltd
Peterborough City Council,"Cultural, Environmental and Planning Services",Development Control,Supplies and Services,13/07/2011,391820,793.79,REVENUE,Johnston Press Midlands Division
Peterborough City Council,"Highways, Roads & Transport Services",Street Lighting,Supplies and Services,13/07/2011,391824,14111.09,REVENUE,Volker Highways MEWS Ltd
Peterborough City Council,Capital,Capital,Capital Pending Update to BS,13/07/2011,391826,3985.34,CAPITAL,Volker Highways MEWS Ltd
Peterborough City Council,"Highways, Roads & Transport Services",Street Lighting,Supplies and Services,13/07/2011,391828,29551.43,REVENUE,Volker Highways MEWS Ltd
Peterborough City Council,Children's & Education Services - Education,Secondary,Supplies and Services,13/07/2011,391881,14552,REVENUE,NACRO
Peterborough City Council,Support Services,Support Services,Employees,13/07/2011,391897,1326.67,REVENUE,Venn Group Ltd
Peterborough City Council,Children's & Education Services - Education,Non-School Funding,Supplies and Services,13/07/2011,391905,114315.97,REVENUE,Capita Absence Management Services Ltd
Peterborough City Council,Children's & Education Services - Children's Social Care,Family Support Services,Employees,13/07/2011,391907,1076.1,REVENUE,Swim
Peterborough City Council,Support Services,Support Services,Employees,13/07/2011,391908,891.38,REVENUE,Sacco Mann Ltd
Peterborough City Council,"Highways, Roads & Transport Services","Transport planning, policy and strategy",Employees,13/07/2011,391914,1458,REVENUE,Randstad CPE
Peterborough City Council,Capital,Capital,Capital Pending Update to BS,13/07/2011,391929,6964.8,CAPITAL,Lock it Safe
Peterborough City Council,"Highways, Roads & Transport Services",Traffic management & Road Safety,Supplies and Services,13/07/2011,391939,678,REVENUE,Sandwell Metropolitan Borough Council
Peterborough City Council,"Highways, Roads & Transport Services","Environmental, Safety & Routine Maintenance",Supplies and Services,13/07/2011,392042,5298.52,REVENUE,Telent Technology Services Ltd
Peterborough City Council,"Highways, Roads & Transport Services","Environmental, Safety & Routine Maintenance",Supplies and Services,13/07/2011,392043,13198.16,REVENUE,Telent Technology Services Ltd
Peterborough City Council,"Highways, Roads & Transport Services","Environmental, Safety & Routine Maintenance",Supplies and Services,13/07/2011,392044,5298.52,REVENUE,Telent Technology Services Ltd
Peterborough City Council,"Highways, Roads & Transport Services","Transport planning, policy and strategy",Employees,13/07/2011,392086,1386,REVENUE,Hays Specialist Recruitment Ltd
Peterborough City Council,More than one Service Area Category,More than one Service Division,More than one Expenses Type,13/07/2011,392220,2158.92,REVENUE,Hays Specialist Recruitment Ltd
Peterborough City Council,More than one Service Area Category,More than one Service Division,Supplies and Services,13/07/2011,392348,762.03,REVENUE,TNT Post Midlands Ltd
Peterborough City Council,"Highways, Roads & Transport Services",Public Transport,Supplies and Services,13/07/2011,392349,34588.81,REVENUE,Stagecoach in Peterborough
Peterborough City Council,"Highways, Roads & Transport Services",Public Transport,Supplies and Services,13/07/2011,392359,34588.81,REVENUE,Stagecoach Viscount
Peterborough City Council,Children's & Education Services - Children's Social Care,Children Looked After,Supplies and Services,13/07/2011,392472,830.26,REVENUE,XMA Limited
Peterborough City Council,"Highways, Roads & Transport Services",Parking Services,Supplies and Services,13/07/2011,392503,1243.84,REVENUE,Loomis UK Ltd
Peterborough City Council,Children's & Education Services - Children's Social Care,Support Services & Management Costs,Supplies and Services,13/07/2011,392512,1663.2,REVENUE,Buckles Solicitors LLP
Peterborough City Council,Support Services,Support Services,Premises,13/07/2011,392514,5509.97,REVENUE,Baker Perkins Ltd
Peterborough City Council,Children's & Education Services - Children's Social Care,Children Looked After,Employees,13/07/2011,392522,2850.4,REVENUE,Northamptonshire  County Council
Peterborough City Council,More than one Service Area Category,More than one Service Division,Balance Sheet,13/07/2011,392548,534.38,Balance Sheet,Rossendales C B Ltd
Peterborough City Council,Children's & Education Services - Children's Social Care,Support Services & Management Costs,Supplies and Services,13/07/2011,392554,1900,REVENUE,HM Courts and Tribunals Service (HMCTS)
Peterborough City Council,Support Services,Support Services,Supplies and Services,13/07/2011,392562,8887.8,REVENUE,Eversheds LLP
Peterborough City Council,More than one Service Area Category,More than one Service Division,Balance Sheet,13/07/2011,392587,1350,Balance Sheet,Accountant General of the Senior Courts
Peterborough City Council,More than one Service Area Category,More than one Service Division,Transport,13/07/2011,392647,745.2,REVENUE,R T Enterprises Ltd T/A Royal Taxis
Peterborough City Council,Capital,Capital,Capital Pending Update to BS,13/07/2011,392819,8255.58,CAPITAL,Langwith Builders Ltd
Peterborough City Council,"Cultural, Environmental and Planning Services",Community Development,Supplies and Services,13/07/2011,392861,1000,REVENUE,Weatherthorn Community
Peterborough City Council,Support Services,Support Services,Supplies and Services,13/07/2011,392892,1842.44,REVENUE,Royal Mail
Peterborough City Council,Deficit/(Surplus) on Trading Undertakings,Trading Account Surpluses & Deficits,Premises,13/07/2011,392938,1997.95,REVENUE,Princebuild Limited
Peterborough City Council,Deficit/(Surplus) on Trading Undertakings,Trading Account Surpluses & Deficits,Premises,13/07/2011,392941,2361.58,REVENUE,Princebuild Limited
Peterborough City Council,Children's & Education Services - Children's Social Care,Other Children's & Families Services,Supplies and Services,13/07/2011,393080,1962.9,REVENUE,Social Support Limited
Peterborough City Council,Children's & Education Services - Children's Social Care,Other Children's & Families Services,Supplies and Services,13/07/2011,393095,1909.55,REVENUE,Social Support Limited
Peterborough City Council,Children's & Education Services - Children's Social Care,Other Children's & Families Services,Supplies and Services,13/07/2011,393097,2032.15,REVENUE,Social Support Limited
Peterborough City Council,Children's & Education Services - Children's Social Care,Other Children's & Families Services,Supplies and Services,13/07/2011,393099,1797.28,REVENUE,Social Support Limited
Peterborough City Council,Children's & Education Services - Children's Social Care,Other Children's & Families Services,Supplies and Services,13/07/2011,393105,2133.03,REVENUE,Social Support Limited
Peterborough City Council,Children's & Education Services - Children's Social Care,Other Children's & Families Services,Supplies and Services,13/07/2011,393107,1869.7,REVENUE,Social Support Limited
Peterborough City Council,Children's & Education Services - Children's Social Care,Other Children's & Families Services,Supplies and Services,13/07/2011,393175,2475,REVENUE,Peterborough Diocesan Family Care
Peterborough City Council,Non Distributed Cost,Pensions,Third Party Payments,13/07/2011,393180,1039433.85,REVENUE,Cambridgeshire County Council
Peterborough City Council,Children's & Education Services - Children's Social Care,Other Children's & Families Services,Supplies and Services,13/07/2011,393194,2082.45,REVENUE,Social Support Limited
Peterborough City Council,Children's & Education Services - Children's Social Care,Other Children's & Families Services,Supplies and Services,13/07/2011,393242,1948.45,REVENUE,Social Support Limited
Peterborough City Council,Children's & Education Services - Children's Social Care,Children Looked After,Supplies and Services - Transfer Payments,13/07/2011,393276,3441.3,REVENUE,Foster Care Associates Ltd FCA
Peterborough City Council,Children's & Education Services - Children's Social Care,Children Looked After,Supplies and Services - Transfer Payments,13/07/2011,393278,4239,REVENUE,Foster Care Associates Ltd FCA
Peterborough City Council,Children's & Education Services - Children's Social Care,Children Looked After,Supplies and Services - Transfer Payments,13/07/2011,393279,2813.7,REVENUE,Foster Care Associates Ltd FCA
Peterborough City Council,Children's & Education Services - Children's Social Care,Children Looked After,Supplies and Services - Transfer Payments,13/07/2011,393280,2813.7,REVENUE,Foster Care Associates Ltd FCA
Peterborough City Council,Children's & Education Services - Children's Social Care,Children Looked After,Supplies and Services - Transfer Payments,13/07/2011,393281,3441.3,REVENUE,Foster Care Associates Ltd FCA
Peterborough City Council,Children's & Education Services - Children's Social Care,Children Looked After,Supplies and Services - Transfer Payments,13/07/2011,393283,3441.3,REVENUE,Foster Care Associates Ltd FCA
Peterborough City Council,Children's & Education Services - Children's Social Care,Children Looked After,Supplies and Services - Transfer Payments,13/07/2011,393285,3441.3,REVENUE,Foster Care Associates Ltd FCA
Peterborough City Council,Children's & Education Services - Children's Social Care,Children Looked After,Supplies and Services - Transfer Payments,13/07/2011,393286,2813.7,REVENUE,Foster Care Associates Ltd FCA
Peterborough City Council,Children's & Education Services - Children's Social Care,Children Looked After,Supplies and Services - Transfer Payments,13/07/2011,393287,3441.3,REVENUE,Foster Care Associates Ltd FCA
Peterborough City Council,Children's & Education Services - Children's Social Care,Children Looked After,Supplies and Services - Transfer Payments,13/07/2011,393288,3441.3,REVENUE,Foster Care Associates Ltd FCA
Peterborough City Council,Children's & Education Services - Children's Social Care,Children Looked After,Supplies and Services - Transfer Payments,13/07/2011,393289,3441.3,REVENUE,Foster Care Associates Ltd FCA
Peterborough City Council,Children's & Education Services - Children's Social Care,Children Looked After,Supplies and Services - Transfer Payments,13/07/2011,393290,3441.3,REVENUE,Foster Care Associates Ltd FCA
Peterborough City Council,Children's & Education Services - Children's Social Care,Children Looked After,Supplies and Services - Transfer Payments,13/07/2011,393292,3441.3,REVENUE,Foster Care Associates Ltd FCA
Peterborough City Council,Children's & Education Services - Children's Social Care,Children Looked After,Supplies and Services - Transfer Payments,13/07/2011,393293,2813.7,REVENUE,Foster Care Associates Ltd FCA
Peterborough City Council,Children's & Education Services - Children's Social Care,Children Looked After,Supplies and Services - Transfer Payments,13/07/2011,393294,3441.3,REVENUE,Foster Care Associates Ltd FCA
Peterborough City Council,Children's & Education Services - Education,Secondary,Employees,13/07/2011,393327,1901.35,REVENUE,Mana Resourcing Ltd
Peterborough City Council,Children's & Education Services - Education,Secondary,Employees,13/07/2011,393329,829.2,REVENUE,Mana Resourcing Ltd
Peterborough City Council,"Cultural, Environmental and Planning Services",Culture & Heritage,Supplies and Services,13/07/2011,393365,650,REVENUE,Freddie & Friends Jazz Band
Peterborough City Council,Capital,Capital,Capital Pending Update to BS,13/07/2011,393835,1454632.8,CAPITAL,Kier Eastern
Peterborough City Council,Deficit/(Surplus) on Trading Undertakings,Trading Account Surpluses & Deficits,Transport,13/07/2011,393845,21194.4,REVENUE,Specialist Fleet Services
Peterborough City Council,Deficit/(Surplus) on Trading Undertakings,Trading Account Surpluses & Deficits,Transport,13/07/2011,393847,21194.4,REVENUE,Specialist Fleet Services
Peterborough City Council,Children's & Education Services - Children's Social Care,Family Support Services,Third Party Payments,13/07/2011,394114,9087.36,REVENUE,Family Action
Peterborough City Council,Children's & Education Services - Education,Non-School Funding,Supplies and Services,13/07/2011,394149,660,REVENUE,Orton Longueville Playgroup
Peterborough City Council,Children's & Education Services - Education,Non-School Funding,Supplies and Services,13/07/2011,394179,750,REVENUE,Family Action
Peterborough City Council,Children's & Education Services - Education,Non-School Funding,Supplies and Services,13/07/2011,394180,600,REVENUE,Family Action
Peterborough City Council,Children's & Education Services - Education,Non-School Funding,Supplies and Services,13/07/2011,394189,1210,REVENUE,Little Pals Playgroup
Peterborough City Council,Children's & Education Services - Education,Non-School Funding,Supplies and Services,13/07/2011,394193,1403.6,REVENUE,Pakistan Comm Ass of PBoro Pre- School
Peterborough City Council,Corporate & Democratic Core,Corporate Management,Employees,13/07/2011,394207,1317.4,REVENUE,"Tanya Callman, Edlaw Training"
Peterborough City Council,Children's & Education Services - Education,Secondary,Premises,13/07/2011,394208,1243.51,REVENUE,Anglian Water
Peterborough City Council,Corporate & Democratic Core,Corporate Management,Employees,13/07/2011,394209,1319.2,REVENUE,"Tanya Callman, Edlaw Training"
Peterborough City Council,"Highways, Roads & Transport Services",Public Transport,Supplies and Services,13/07/2011,394236,9159.84,REVENUE,National Express Ltd
Peterborough City Council,Children's & Education Services - Children's Social Care,Support Services & Management Costs,Supplies and Services,13/07/2011,394245,648,REVENUE,Redacted Personal Data
Peterborough City Council,"Cultural, Environmental and Planning Services",Library Services,Supplies and Services,13/07/2011,394311,567,REVENUE,Falcon Property Trust
Peterborough City Council,Support Services,Support Services,Premises,13/07/2011,394354,4814.22,REVENUE,Viridor Waste Kent Ltd
Peterborough City Council,Support Services,Support Services,Premises,13/07/2011,394361,1582.08,REVENUE,Viridor Waste Kent Ltd
Peterborough City Council,Children's & Education Services - Children's Social Care,Non-School Funding,Premises,13/07/2011,394376,12743.25,REVENUE,Dexter Brown Ltd
Peterborough City Council,Children's & Education Services - Children's Social Care,Non-School Funding,Premises,13/07/2011,394377,2374.81,REVENUE,Dexter Brown Ltd
Peterborough City Council,Children's & Education Services - Children's Social Care,Non-School Funding,Premises,13/07/2011,394379,759.65,REVENUE,Dexter Brown Ltd
Peterborough City Council,"Cultural, Environmental and Planning Services",Community Development,Supplies and Services,13/07/2011,394384,1000,REVENUE,Loxley Social Club
Peterborough City Council,"Cultural, Environmental and Planning Services",Community Development,Supplies and Services,13/07/2011,394385,500,REVENUE,Nene District Scout Council
Peterborough City Council,"Cultural, Environmental and Planning Services",Economic Development,Premises,13/07/2011,394392,1186.56,REVENUE,Viridor Waste Kent Ltd
Peterborough City Council,"Cultural, Environmental and Planning Services",Economic Development,Premises,13/07/2011,394396,4746.24,REVENUE,Viridor Waste Kent Ltd
Peterborough City Council,"Cultural, Environmental and Planning Services",Economic Development,Premises,13/07/2011,394400,4072.55,REVENUE,Viridor Waste Kent Ltd
Peterborough City Council,"Cultural, Environmental and Planning Services",Economic Development,Premises,13/07/2011,394402,15164.8,REVENUE,Viridor Waste Kent Ltd
Peterborough City Council,Support Services,Support Services,Premises,13/07/2011,394415,2407.12,REVENUE,Viridor Waste Kent Ltd
Peterborough City Council,"Cultural, Environmental and Planning Services",Community Development,Premises,13/07/2011,394426,722.14,REVENUE,Viridor Waste Kent Ltd
Peterborough City Council,"Cultural, Environmental and Planning Services",Culture & Heritage,Premises,13/07/2011,394427,1444.27,REVENUE,Viridor Waste Kent Ltd
Peterborough City Council,Children's & Education Services - Children's Social Care,Children Looked After,Premises,13/07/2011,394451,722.14,REVENUE,Viridor Waste Kent Ltd
Peterborough City Council,"Cultural, Environmental and Planning Services",Recreation & Sport,Premises,13/07/2011,394456,1444.27,REVENUE,Viridor Waste Kent Ltd
Peterborough City Council,Children's & Education Services - Children's Social Care,Children Looked After,Premises,13/07/2011,394471,5476.27,REVENUE,The K A Wing Group Ltd
Peterborough City Council,"Cultural, Environmental and Planning Services",Community Development,Supplies and Services,13/07/2011,394504,2700,REVENUE,William Law C of E Primary
Peterborough City Council,"Cultural, Environmental and Planning Services",Community Development,Supplies and Services,13/07/2011,394505,500,REVENUE,Welland Residents Association
Peterborough City Council,More than one Service Area Category,More than one Service Division,Transport,13/07/2011,394507,1216.65,REVENUE,Redacted Personal Data
Peterborough City Council,More than one Service Area Category,More than one Service Division,Transport,13/07/2011,394508,922.95,REVENUE,Redacted Personal Data
Peterborough City Council,Children's & Education Services - Children's Social Care,Children Looked After,Transport,13/07/2011,394509,1815.8,REVENUE,Redacted Personal Data
Peterborough City Council,Children's & Education Services - Children's Social Care,Children Looked After,Transport,13/07/2011,394510,1319.6,REVENUE,Redacted Personal Data
Peterborough City Council,Support Services,Support Services,Premises,13/07/2011,394513,519.86,REVENUE,Eastern Shires Purchasing Organisation
Peterborough City Council,Support Services,Support Services,Premises,13/07/2011,394515,988.64,REVENUE,Southern Electric
Peterborough City Council,Support Services,Support Services,Premises,13/07/2011,394519,559.91,REVENUE,Eastern Shires Purchasing Organisation
Peterborough City Council,Children's & Education Services - Children's Social Care,More than one Service Division,Supplies and Services,13/07/2011,394521,864.29,REVENUE,Children & Families Looked After Children
Peterborough City Council,Support Services,Support Services,Premises,13/07/2011,394530,42974.5,REVENUE,Southern Electric
Peterborough City Council,Children's & Education Services - Education,Secondary,Employees,13/07/2011,394555,1508.42,REVENUE,Mana Resourcing Ltd
Peterborough City Council,More than one Service Area Category,More than one Service Division,Balance Sheet,13/07/2011,394571,3500,Balance Sheet,Eversheds LLP
Peterborough City Council,Support Services,Support Services,Supplies and Services,13/07/2011,394574,4576,REVENUE,Criminal Records Bureau
Peterborough City Council,More than one Service Area Category,More than one Service Division,More than one Expenses Type,13/07/2011,394576,3807.71,"Mixture of Capital, Revenue and/or Balance Sheet",IIC by Education (P'boro) Ltd
Peterborough City Council,Deficit/(Surplus) on Trading Undertakings,Trading Account Surpluses & Deficits,Premises,13/07/2011,394581,12063.51,REVENUE,J R Clarke Ltd
Peterborough City Council,Deficit/(Surplus) on Trading Undertakings,Trading Account Surpluses & Deficits,Transport,13/07/2011,394582,900,REVENUE,SG Equipment Finance Ltd
Peterborough City Council,Capital,Capital,Capital Pending Update to BS,13/07/2011,394585,5820,CAPITAL,PG Robinson t/a PGR Construction
Peterborough City Council,Capital,Capital,Capital Pending Update to BS,13/07/2011,394588,17040,CAPITAL,PG Robinson t/a PGR Construction
Peterborough City Council,Capital,Capital,Capital Pending Update to BS,13/07/2011,394589,7887,CAPITAL,PG Robinson t/a PGR Construction
Peterborough City Council,Children's & Education Services - Children's Social Care,More than one Service Division,More than one Expenses Type,13/07/2011,394626,915.17,REVENUE,Children & Families Looked After Children
Peterborough City Council,Capital,Capital,Capital Pending Update to BS,13/07/2011,394643,60000,CAPITAL,Cemplas Waterproofing & Concrete Repairs Ltd
Peterborough City Council,Support Services,Support Services,Supplies and Services,13/07/2011,394644,743.16,REVENUE,Clarity Retail Systems Limited
Peterborough City Council,Support Services,Support Services,Supplies and Services,13/07/2011,394645,7431.5,REVENUE,Clarity Retail Systems Limited
Peterborough City Council,Support Services,Support Services,Supplies and Services,13/07/2011,394646,5945.2,REVENUE,Clarity Retail Systems Limited
Peterborough City Council,Housing Services,Housing Benefits,Employees,15/07/2011,380316,704.63,REVENUE,Reed Personnel Services Plc
Peterborough City Council,Housing Services,Housing Benefits,Employees,15/07/2011,381643,704.63,REVENUE,Reed Personnel Services Plc
Peterborough City Council,Housing Services,Housing Benefits,Employees,15/07/2011,383269,704.63,REVENUE,Reed Personnel Services Plc
Peterborough City Council,Housing Services,Housing Benefits,Employees,15/07/2011,384111,571.32,REVENUE,Reed Personnel Services Plc
Peterborough City Council,"Highways, Roads & Transport Services",Street Lighting,Supplies and Services,15/07/2011,385537,3153.6,REVENUE,UK Power Networks (operations) Ltd
Peterborough City Council,Deficit/(Surplus) on Trading Undertakings,Trading Account Surpluses & Deficits,Supplies and Services,15/07/2011,386842,1914.19,REVENUE,Barron Clark Castings Ltd
Peterborough City Council,Deficit/(Surplus) on Trading Undertakings,Trading Account Surpluses & Deficits,Supplies and Services,15/07/2011,386844,594.76,REVENUE,Barron Clark Castings Ltd
Peterborough City Council,Deficit/(Surplus) on Trading Undertakings,Trading Account Surpluses & Deficits,Supplies and Services,15/07/2011,386873,1270.03,REVENUE,Barron Clark Castings Ltd
Peterborough City Council,Deficit/(Surplus) on Trading Undertakings,Trading Account Surpluses & Deficits,Supplies and Services,15/07/2011,386876,1279.18,REVENUE,Barron Clark Castings Ltd
Peterborough City Council,Children's & Education Services - Children's Social Care,Children Looked After,Supplies and Services - Transfer Payments,15/07/2011,388271,5071.1,REVENUE,Youth Justice Board
Peterborough City Council,Children's & Education Services - Children's Social Care,Children Looked After,Supplies and Services - Transfer Payments,15/07/2011,388273,4091.52,REVENUE,Youth Justice Board
Peterborough City Council,Children's & Education Services - Children's Social Care,Children Looked After,Supplies and Services - Transfer Payments,15/07/2011,388275,642,REVENUE,Youth Justice Board
Peterborough City Council,Children's & Education Services - Children's Social Care,Children Looked After,Supplies and Services - Transfer Payments,15/07/2011,388276,1216.5,REVENUE,Youth Justice Board
Peterborough City Council,Housing Services,Housing Benefits,Employees,15/07/2011,388458,704.63,REVENUE,Reed Personnel Services Plc
Peterborough City Council,Housing Services,Housing Benefits,Employees,15/07/2011,389959,3844.8,REVENUE,Reed Personnel Services Plc
Peterborough City Council,More than one Service Area Category,More than one Service Division,More than one Expenses Type,15/07/2011,391056,6533.28,"Mixture of Capital, Revenue and/or Balance Sheet",GSL Dardan Ltd
Peterborough City Council,More than one Service Area Category,More than one Service Division,More than one Expenses Type,15/07/2011,391125,6517.46,"Mixture of Capital, Revenue and/or Balance Sheet",GSL Dardan Ltd
Peterborough City Council,Deficit/(Surplus) on Trading Undertakings,Trading Account Surpluses & Deficits,Supplies and Services,15/07/2011,392176,644.16,REVENUE,Barron Clark Castings Ltd
Peterborough City Council,More than one Service Area Category,More than one Service Division,More than one Expenses Type,15/07/2011,392209,5616,"Mixture of Capital, Revenue and/or Balance Sheet",GSL Dardan Ltd
Peterborough City Council,More than one Service Area Category,More than one Service Division,Supplies and Services,15/07/2011,392288,6611.1,REVENUE,TNT Post Midlands Ltd
Peterborough City Council,More than one Service Area Category,More than one Service Division,Supplies and Services,15/07/2011,392293,19448.63,REVENUE,TNT Post Midlands Ltd
Peterborough City Council,Support Services,Support Services,Employees,15/07/2011,394020,1764,REVENUE,Sellick Partnership Group Limited
Peterborough City Council,Support Services,Support Services,Employees,15/07/2011,394021,1285.2,REVENUE,Sellick Partnership Group Limited
Peterborough City Council,Support Services,Support Services,Employees,15/07/2011,394023,1764,REVENUE,Sellick Partnership Group Limited
Peterborough City Council,Support Services,Support Services,Employees,15/07/2011,394025,1764,REVENUE,Sellick Partnership Group Limited
Peterborough City Council,Support Services,Support Services,Employees,15/07/2011,394027,1335.6,REVENUE,Sellick Partnership Group Limited
Peterborough City Council,Support Services,Support Services,Employees,15/07/2011,394029,1764,REVENUE,Sellick Partnership Group Limited
Peterborough City Council,Support Services,Support Services,Employees,15/07/2011,394030,1360.8,REVENUE,Sellick Partnership Group Limited
Peterborough City Council,Support Services,Support Services,Employees,15/07/2011,394031,2192.4,REVENUE,Sellick Partnership Group Limited
Peterborough City Council,Support Services,Support Services,Employees,15/07/2011,394032,1764,REVENUE,Sellick Partnership Group Limited
Peterborough City Council,Support Services,Support Services,Employees,15/07/2011,394033,1764,REVENUE,Sellick Partnership Group Limited
Peterborough City Council,"Cultural, Environmental and Planning Services","Cemetery, Crematorium & Mortuary Services",Premises,15/07/2011,394341,962.84,REVENUE,Viridor Waste Kent Ltd
Peterborough City Council,Children's & Education Services - Education,Non-School Funding,Supplies and Services,15/07/2011,394473,716.15,REVENUE,Carousel Day Nursery
Peterborough City Council,"Cultural, Environmental and Planning Services",Community Development,Third Party Payments,15/07/2011,394525,500,REVENUE,Refugee Week Project
Peterborough City Council,Children's & Education Services - Education,Non-School Funding,Supplies and Services,15/07/2011,394564,750,REVENUE,Vivacity Culture and Leisure
Peterborough City Council,"Cultural, Environmental and Planning Services",Economic Development,Supplies and Services,15/07/2011,394569,1099.39,REVENUE,Vivacity Culture and Leisure
Peterborough City Council,"Highways, Roads & Transport Services",Street Lighting,Premises,15/07/2011,394570,42241.54,REVENUE,Southern Electric
Peterborough City Council,"Cultural, Environmental and Planning Services",More than one Service Division,Transport,15/07/2011,394578,5100,REVENUE,SG Equipment Finance Ltd
Peterborough City Council,"Cultural, Environmental and Planning Services",Building Control,Fees and Charges,15/07/2011,394580,687.38,REVENUE,Redacted Personal Data
Peterborough City Council,"Highways, Roads & Transport Services",Environmental Initiatives,Supplies and Services,15/07/2011,394583,2640.78,REVENUE,Cyclescheme Ltd
Peterborough City Council,"Highways, Roads & Transport Services",Environmental Initiatives,Supplies and Services,15/07/2011,394602,814.97,REVENUE,Cyclescheme Ltd
Peterborough City Council,"Highways, Roads & Transport Services",Street Lighting,Premises,15/07/2011,394610,1165.43,REVENUE,E.ON Energy
Peterborough City Council,Children's & Education Services - Education,Non-School Funding,Supplies and Services,15/07/2011,394631,720,REVENUE,Parnwell Family Project Playgroup
Peterborough City Council,Deficit/(Surplus) on Trading Undertakings,Trading Account Surpluses & Deficits,Transport,15/07/2011,394705,1001.38,REVENUE,B M C Plc
Peterborough City Council,"Cultural, Environmental and Planning Services",Community Development,Premises,15/07/2011,394718,9078.39,REVENUE,E.ON Energy
Peterborough City Council,"Cultural, Environmental and Planning Services",Economic Development,Third Party Payments,15/07/2011,394720,600,REVENUE,Community Action P'Boro
Peterborough City Council,"Cultural, Environmental and Planning Services",Economic Development,Third Party Payments,15/07/2011,394725,23054.4,REVENUE,UK cntr for Economic & Env Dev.
Peterborough City Council,Capital,Capital,Capital Pending Update to BS,15/07/2011,394747,33015.96,CAPITAL,The K A Wing Group Ltd
Peterborough City Council,"Highways, Roads & Transport Services",Public Transport,Supplies and Services,15/07/2011,394778,1741.41,REVENUE,Statutory Payments of Concessionary Fares to Bus Provider
Peterborough City Council,"Cultural, Environmental and Planning Services",Waste Collection,Supplies and Services,15/07/2011,394785,673.76,REVENUE,Kingsway Tyres (Stamford) Ltd
Peterborough City Council,Deficit/(Surplus) on Trading Undertakings,Trading Account Surpluses & Deficits,Transport,15/07/2011,394791,2700,REVENUE,SG Equipment Finance Ltd
Peterborough City Council,"Cultural, Environmental and Planning Services",Street Cleansing,Transport,15/07/2011,394792,510,REVENUE,SG Equipment Finance Ltd
Peterborough City Council,Deficit/(Surplus) on Trading Undertakings,Trading Account Surpluses & Deficits,Transport,15/07/2011,394793,3870,REVENUE,SG Equipment Finance Ltd
Peterborough City Council,"Cultural, Environmental and Planning Services",Open Spaces,Transport,15/07/2011,394836,1200,REVENUE,SG Equipment Finance Ltd
Peterborough City Council,Deficit/(Surplus) on Trading Undertakings,Trading Account Surpluses & Deficits,Transport,15/07/2011,394841,900,REVENUE,SG Equipment Finance Ltd
Peterborough City Council,"Cultural, Environmental and Planning Services",Street Cleansing,Transport,15/07/2011,394843,1380,REVENUE,SG Equipment Finance Ltd
Peterborough City Council,Deficit/(Surplus) on Trading Undertakings,Trading Account Surpluses & Deficits,Supplies and Services,15/07/2011,394850,5301,REVENUE,B Safe Electrical Services
Peterborough City Council,More than one Service Area Category,More than one Service Division,Supplies and Services,15/07/2011,394853,810.68,REVENUE,TNT Post Midlands Ltd
Peterborough City Council,More than one Service Area Category,More than one Service Division,Supplies and Services,15/07/2011,394857,592.59,REVENUE,TNT Post Midlands Ltd
Peterborough City Council,"Cultural, Environmental and Planning Services",Open Spaces,Transport,15/07/2011,394881,2880,REVENUE,SG Equipment Finance Ltd
Peterborough City Council,Support Services,Support Services,Supplies and Services,15/07/2011,394941,3652,REVENUE,Criminal Records Bureau
Peterborough City Council,Children's & Education Services - Children's Social Care,Family Support Services,Premises,15/07/2011,395007,2234.76,REVENUE,Peterborough Provider Services
Peterborough City Council,Children's & Education Services - Education,Non-School Funding,Transport,15/07/2011,395031,1200,REVENUE,Peterborough Cars
Peterborough City Council,Children's & Education Services - Education,Non-School Funding,Transport,15/07/2011,395032,1624.08,REVENUE,Goldstar Cabs Ltd
Peterborough City Council,Children's & Education Services - Education,Non-School Funding,Transport,15/07/2011,395033,1188,REVENUE,Goldstar Cabs Ltd
Peterborough City Council,Children's & Education Services - Education,Non-School Funding,Transport,15/07/2011,395034,1113,REVENUE,Goldstar Cabs Ltd
Peterborough City Council,Children's & Education Services - Education,Non-School Funding,Transport,15/07/2011,395035,2057.7,REVENUE,Goldstar Cabs Ltd
Peterborough City Council,Children's & Education Services - Education,Non-School Funding,Transport,15/07/2011,395036,1602.72,REVENUE,Goldstar Cabs Ltd
Peterborough City Council,Children's & Education Services - Education,Non-School Funding,Transport,15/07/2011,395037,1413.6,REVENUE,Goldstar Cabs Ltd
Peterborough City Council,Children's & Education Services - Education,Non-School Funding,Transport,15/07/2011,395038,669.6,REVENUE,Goldstar Cabs Ltd
Peterborough City Council,Children's & Education Services - Education,Non-School Funding,Transport,15/07/2011,395039,1573.2,REVENUE,Goldstar Cabs Ltd
Peterborough City Council,Children's & Education Services - Education,Non-School Funding,Transport,15/07/2011,395040,1276.8,REVENUE,Goldstar Cabs Ltd
Peterborough City Council,Children's & Education Services - Education,Non-School Funding,Transport,15/07/2011,395041,2872.8,REVENUE,Goldstar Cabs Ltd
Peterborough City Council,Children's & Education Services - Education,Non-School Funding,Transport,15/07/2011,395042,1938,REVENUE,Goldstar Cabs Ltd
Peterborough City Council,Children's & Education Services - Education,Non-School Funding,Transport,15/07/2011,395043,1404,REVENUE,Goldstar Cabs Ltd
Peterborough City Council,Children's & Education Services - Education,Non-School Funding,Transport,15/07/2011,395045,571.2,REVENUE,Goldstar Cabs Ltd
Peterborough City Council,Children's & Education Services - Education,Non-School Funding,Transport,15/07/2011,395046,1000.8,REVENUE,Goldstar Cabs Ltd
Peterborough City Council,"Cultural, Environmental and Planning Services",Recreation & Sport,Premises,15/07/2011,395095,6756,REVENUE,Princebuild Limited
Peterborough City Council,Deficit/(Surplus) on Trading Undertakings,Trading Account Surpluses & Deficits,Supplies and Services,15/07/2011,395103,938.81,REVENUE,Barron Clark Castings Ltd
Peterborough City Council,Deficit/(Surplus) on Trading Undertakings,Trading Account Surpluses & Deficits,Supplies and Services,15/07/2011,395106,1274.04,REVENUE,Barron Clark Castings Ltd
Peterborough City Council,More than one Service Area Category,More than one Service Division,Balance Sheet,15/07/2011,395117,244582.02,Balance Sheet,Cambridgeshire County Council
Peterborough City Council,More than one Service Area Category,More than one Service Division,Balance Sheet,15/07/2011,395118,647452.42,Balance Sheet,Cambridgeshire County Council
Peterborough City Council,More than one Service Area Category,More than one Service Division,Balance Sheet,15/07/2011,395120,1083.53,Balance Sheet,Cambridgeshire County Council
Peterborough City Council,More than one Service Area Category,More than one Service Division,Balance Sheet,15/07/2011,395121,3358.05,Balance Sheet,Cambridgeshire County Council
Peterborough City Council,More than one Service Area Category,More than one Service Division,Balance Sheet,15/07/2011,395126,4436.96,Balance Sheet,The Prudential Assurance Company Ltd
Peterborough City Council,Children's & Education Services - Children's Social Care,Service Strategy,Supplies and Services,15/07/2011,395133,500,REVENUE,Redacted Personal Data
Peterborough City Council,More than one Service Area Category,More than one Service Division,More than one Expenses Type,15/07/2011,395135,3847,"Mixture of Capital, Revenue and/or Balance Sheet",P F S Builders & Contractors
Peterborough City Council,More than one Service Area Category,More than one Service Division,More than one Expenses Type,15/07/2011,395141,2021.81,REVENUE,Peterborough City Council
Peterborough City Council,More than one Service Area Category,More than one Service Division,More than one Expenses Type,15/07/2011,395143,787,"Mixture of Capital, Revenue and/or Balance Sheet",T G Development Ltd
Peterborough City Council,More than one Service Area Category,More than one Service Division,More than one Expenses Type,15/07/2011,395155,4099.32,"Mixture of Capital, Revenue and/or Balance Sheet",FAM Building Contractors LLP
Peterborough City Council,More than one Service Area Category,More than one Service Division,More than one Expenses Type,15/07/2011,395158,10598.4,"Mixture of Capital, Revenue and/or Balance Sheet",Burmor Construction
Peterborough City Council,More than one Service Area Category,More than one Service Division,More than one Expenses Type,15/07/2011,395162,2827,"Mixture of Capital, Revenue and/or Balance Sheet",Morley Building Services
Peterborough City Council,More than one Service Area Category,More than one Service Division,More than one Expenses Type,15/07/2011,395164,1840,"Mixture of Capital, Revenue and/or Balance Sheet",Morley Building Services
Peterborough City Council,More than one Service Area Category,More than one Service Division,More than one Expenses Type,15/07/2011,395166,1863.77,REVENUE,Peterborough City Council
Peterborough City Council,More than one Service Area Category,More than one Service Division,More than one Expenses Type,15/07/2011,395167,3820,"Mixture of Capital, Revenue and/or Balance Sheet",Casbon Building Services
Peterborough City Council,More than one Service Area Category,More than one Service Division,More than one Expenses Type,15/07/2011,395180,1465,"Mixture of Capital, Revenue and/or Balance Sheet",S R K Engineering
Peterborough City Council,"Cultural, Environmental and Planning Services",Economic Development,Third Party Payments,15/07/2011,395185,4880,REVENUE,Peterborough Mediation
Peterborough City Council,Children's & Education Services - Children's Social Care,Family Support Services,More than one Expenses Type,15/07/2011,395230,635.76,REVENUE,Cherry Lodge
Peterborough City Council,Capital,Capital,Capital Pending Update to BS,15/07/2011,395232,12441,CAPITAL,G D'Amore Ltd
Peterborough City Council,Children's & Education Services - Children's Social Care,Family Support Services,Supplies and Services - Transfer Payments,15/07/2011,395235,922.68,REVENUE,Cherry Lodge
Peterborough City Council,Children's & Education Services - Education,Non-School Funding,Supplies and Services,18/07/2011,391294,3685.61,REVENUE,Little Poppets Day Nursery
Peterborough City Council,Children's & Education Services - Children's Social Care,Other Children's & Families Services,Third Party Payments,18/07/2011,391377,5582,REVENUE,Papworth Trust
Peterborough City Council,"Highways, Roads & Transport Services","Transport planning, policy and strategy",Transport,18/07/2011,391875,3450.48,REVENUE,Atkins Limited
Peterborough City Council,"Highways, Roads & Transport Services",Winter Service,Transport,18/07/2011,391930,3734.77,REVENUE,Atkins Limited
Peterborough City Council,"Cultural, Environmental and Planning Services",Economic Development,Supplies and Services,18/07/2011,391931,3093.95,REVENUE,Vivacity Culture and Leisure
Peterborough City Council,"Cultural, Environmental and Planning Services",Waste Collection,Supplies and Services,18/07/2011,391942,5709.41,REVENUE,Waste Recycling Ltd
Peterborough City Council,"Cultural, Environmental and Planning Services",Waste Collection,Supplies and Services,18/07/2011,391943,269129.84,REVENUE,Waste Recycling Ltd
Peterborough City Council,"Cultural, Environmental and Planning Services",Waste Collection,Supplies and Services,18/07/2011,391945,13054.67,REVENUE,Waste Recycling Ltd
Peterborough City Council,"Cultural, Environmental and Planning Services",Waste Collection,Supplies and Services,18/07/2011,391947,1973.58,REVENUE,Waste Recycling Ltd
Peterborough City Council,"Cultural, Environmental and Planning Services",Waste Collection,Supplies and Services,18/07/2011,391948,12137.24,REVENUE,Waste Recycling Ltd
Peterborough City Council,"Cultural, Environmental and Planning Services",Waste Collection,Supplies and Services,18/07/2011,391950,1071.06,REVENUE,Waste Recycling Ltd
Peterborough City Council,"Cultural, Environmental and Planning Services",Recreation & Sport,Supplies and Services,18/07/2011,391963,665.98,REVENUE,Triple SSS Limited
Peterborough City Council,Housing Services,Homelessness,Supplies and Services,18/07/2011,392205,703.51,REVENUE,Euro RSCG Riley Ltd
Peterborough City Council,Support Services,More than one Service Division,Supplies and Services,18/07/2011,392297,-546.58,REVENUE,TNT Post Midlands Ltd
Peterborough City Council,Court Services,Coroner's Court Service,Supplies and Services,18/07/2011,392318,3388,REVENUE,P'Boro & Stamford Hosp NHS F/dation Trust
Peterborough City Council,Children's & Education Services - Children's Social Care,Other Children's & Families Services,Supplies and Services,18/07/2011,392392,1470,REVENUE,Anchor Lodge
Peterborough City Council,Capital,Capital,Capital Pending Update to BS,18/07/2011,392504,582,CAPITAL,Surveyline Geomatics UK Limited
Peterborough City Council,Housing Services,Homelessness,Employees,18/07/2011,392523,608.91,REVENUE,Anne Corder Recruitment
Peterborough City Council,Housing Services,Homelessness,Employees,18/07/2011,392524,644.51,REVENUE,Anne Corder Recruitment
Peterborough City Council,"Cultural, Environmental and Planning Services",Waste Collection,Supplies and Services,18/07/2011,392532,12069.84,REVENUE,H W Martin Waste Ltd
Peterborough City Council,"Highways, Roads & Transport Services",Public Transport,Supplies and Services,18/07/2011,392644,161903.66,REVENUE,Stagecoach in Peterborough
Peterborough City Council,More than one Service Area Category,More than one Service Division,Supplies and Services,18/07/2011,392659,2181.77,REVENUE,TNT Post Midlands Ltd
Peterborough City Council,Children's & Education Services - Children's Social Care,Other Children's & Families Services,Employees,18/07/2011,392703,1776,REVENUE,Medicare First
Peterborough City Council,Children's & Education Services - Children's Social Care,Support Services & Management Costs,Employees,18/07/2011,392803,900,REVENUE,Redacted Personal Data
Peterborough City Council,Children's & Education Services - Education,Non-School Funding,Supplies and Services,18/07/2011,392811,3999.37,REVENUE,ADT Fire and Security
Peterborough City Council,More than one Service Area Category,More than one Service Division,Supplies and Services,18/07/2011,392890,14330.52,REVENUE,P'Boro & Stamford Hosp NHS F/dation Trust
Peterborough City Council,"Cultural, Environmental and Planning Services",Economic Development,Employees,18/07/2011,392899,1135.83,REVENUE,Redacted Personal Data
Peterborough City Council,Children's & Education Services - Children's Social Care,Other Children's & Families Services,Supplies and Services,18/07/2011,393094,1821.48,REVENUE,Social Support Limited
Peterborough City Council,Capital,Capital,Capital Pending Update to BS,18/07/2011,393176,3747.8,CAPITAL,Ringway Infrastructure Services
Peterborough City Council,Deficit/(Surplus) on Trading Undertakings,Trading Account Surpluses & Deficits,Supplies and Services,18/07/2011,393206,10384.56,REVENUE,Haas Automation
Peterborough City Council,Children's & Education Services - Children's Social Care,Support Services & Management Costs,Supplies and Services,18/07/2011,393946,1333.56,REVENUE,Psychology Clinic of East Anglia
Peterborough City Council,"Cultural, Environmental and Planning Services",Tourism,Supplies and Services,18/07/2011,394562,591.3,REVENUE,Peterborough Mask Theatre
Peterborough City Council,"Highways, Roads & Transport Services",Street Lighting,Premises,18/07/2011,394627,1553.4,REVENUE,Southern Electric
Peterborough City Council,Capital,Capital,Capital Pending Update to BS,18/07/2011,394647,134457.98,CAPITAL,L Garfield (Builders) Ltd
Peterborough City Council,Children's & Education Services - Children's Social Care,Support Services & Management Costs,Employees,18/07/2011,394749,1080,REVENUE,Reconstruct
Peterborough City Council,"Highways, Roads & Transport Services",Street Lighting,Premises,18/07/2011,394977,36291.8,REVENUE,Southern Electric
Peterborough City Council,"Highways, Roads & Transport Services",Street Lighting,Premises,18/07/2011,394981,2196.13,REVENUE,Southern Electric
Peterborough City Council,"Highways, Roads & Transport Services",Street Lighting,Premises,18/07/2011,394993,1789.29,REVENUE,Southern Electric
Peterborough City Council,"Highways, Roads & Transport Services",Street Lighting,Premises,18/07/2011,394996,2269.33,REVENUE,Southern Electric
Peterborough City Council,Adult Social Care,Adult Social Care,Supplies and Services,18/07/2011,395116,326019.81,REVENUE,Peterborough Provider Services
Peterborough City Council,"Cultural, Environmental and Planning Services",Planning Policy,Supplies and Services,18/07/2011,395183,1618.5,REVENUE,Danwood Contract Rentals
Peterborough City Council,More than one Service Area Category,More than one Service Division,More than one Expenses Type,18/07/2011,395256,1620,"Mixture of Capital, Revenue and/or Balance Sheet",UK Power Networks (operations) Ltd
Peterborough City Council,Capital,Capital,Capital Pending Update to BS,18/07/2011,395263,3794.4,CAPITAL,UK Power Networks (operations) Ltd
Peterborough City Council,Capital,Capital,Capital Pending Update to BS,18/07/2011,395275,5983.2,CAPITAL,UK Power Networks (operations) Ltd
Peterborough City Council,Capital,Capital,Capital Pending Update to BS,18/07/2011,395277,10120.8,CAPITAL,UK Power Networks (operations) Ltd
Peterborough City Council,Court Services,Coroner's Court Service,More than one Expenses Type,18/07/2011,395289,6997.38,REVENUE,Coroners Service
Peterborough City Council,Deficit/(Surplus) on Trading Undertakings,Trading Account Surpluses & Deficits,Supplies and Services,18/07/2011,395290,1704,REVENUE,Shield Engineering (Syston) Ltd
Peterborough City Council,More than one Service Area Category,More than one Service Division,More than one Expenses Type,18/07/2011,395303,7979.29,"Mixture of Capital, Revenue and/or Balance Sheet",Peterborough City Council
Peterborough City Council,Children's & Education Services - Education,Non-School Funding,Transport,18/07/2011,395311,1048.8,REVENUE,A2B Euro Cars
Peterborough City Council,Children's & Education Services - Education,Non-School Funding,Transport,18/07/2011,395312,1812,REVENUE,A2B Euro Cars
Peterborough City Council,Children's & Education Services - Education,Non-School Funding,Transport,18/07/2011,395313,736.8,REVENUE,A2B Euro Cars
Peterborough City Council,Children's & Education Services - Education,Non-School Funding,Transport,18/07/2011,395329,601.2,REVENUE,Goldstar Cabs Ltd
Peterborough City Council,Housing Services,Homelessness,Supplies and Services,18/07/2011,395334,520,REVENUE,Renaissance Property Mngmnt
Peterborough City Council,Housing Services,Homelessness,Supplies and Services,18/07/2011,395336,549.99,REVENUE,Hunters of York
Peterborough City Council,More than one Service Area Category,More than one Service Division,Balance Sheet,18/07/2011,395354,4777.07,Balance Sheet,HM Revenues & Customs
Peterborough City Council,More than one Service Area Category,More than one Service Division,Balance Sheet,18/07/2011,395355,7380.84,Balance Sheet,HM Revenues & Customs
Peterborough City Council,More than one Service Area Category,More than one Service Division,Balance Sheet,18/07/2011,395356,12888.22,Balance Sheet,HM Revenues & Customs
Peterborough City Council,More than one Service Area Category,More than one Service Division,Balance Sheet,18/07/2011,395357,131265.11,Balance Sheet,HM Revenues & Customs
Peterborough City Council,More than one Service Area Category,More than one Service Division,Balance Sheet,18/07/2011,395358,1565634.09,Balance Sheet,HM Revenues & Customs
Peterborough City Council,Contribution of Housing Capital Receipts to Government Pool,Contribution to Housing Capital Receipts,Third Party Payments,18/07/2011,395369,1398.56,REVENUE,Dept for Communities & Local Government
Peterborough City Council,Housing Services,Housing Benefits,Employees,20/07/2011,374934,1544.4,REVENUE,Badenoch & Clark
Peterborough City Council,Housing Services,Housing Benefits,Employees,20/07/2011,376214,1667.26,REVENUE,Badenoch & Clark
Peterborough City Council,Housing Services,Housing Benefits,Employees,20/07/2011,376886,1544.4,REVENUE,Badenoch & Clark
Peterborough City Council,Housing Services,Housing Benefits,Employees,20/07/2011,378427,1544.4,REVENUE,Badenoch & Clark
Peterborough City Council,Housing Services,Housing Benefits,Employees,20/07/2011,381020,1807.66,REVENUE,Badenoch & Clark
Peterborough City Council,Support Services,Support Services,Supplies and Services,20/07/2011,384159,5942.4,REVENUE,Northgate Information Solutions
Peterborough City Council,Support Services,Support Services,Supplies and Services,20/07/2011,384160,1680,REVENUE,Northgate Information Solutions
Peterborough City Council,Housing Services,Housing Benefits,Employees,20/07/2011,384187,1614.6,REVENUE,Badenoch & Clark
Peterborough City Council,Housing Services,Housing Benefits,Employees,20/07/2011,384427,1088.1,REVENUE,Badenoch & Clark
Peterborough City Council,Housing Services,Housing Benefits,Employees,20/07/2011,384581,1755,REVENUE,Badenoch & Clark
Peterborough City Council,Housing Services,Housing Benefits,Employees,20/07/2011,384824,1614.6,REVENUE,Badenoch & Clark
Peterborough City Council,Housing Services,Housing Benefits,Employees,20/07/2011,385668,1456.66,REVENUE,Badenoch & Clark
Peterborough City Council,Children's & Education Services - Children's Social Care,Other Children's & Families Services,Employees,20/07/2011,386480,1367.38,REVENUE,Blue Group International Ltd
Peterborough City Council,Housing Services,Housing Benefits,Employees,20/07/2011,386800,1755,REVENUE,Badenoch & Clark
Peterborough City Council,Housing Services,Housing Benefits,Employees,20/07/2011,387673,1825.2,REVENUE,Badenoch & Clark
Peterborough City Council,"Highways, Roads & Transport Services","Transport planning, policy and strategy",Transport,20/07/2011,388352,1718.83,REVENUE,Atkins Limited
Peterborough City Council,Housing Services,Housing Benefits,Employees,20/07/2011,388614,1755,REVENUE,Badenoch & Clark
Peterborough City Council,Housing Services,Housing Benefits,Employees,20/07/2011,389197,1965.6,REVENUE,Badenoch & Clark
Peterborough City Council,Children's & Education Services - Children's Social Care,More than one Service Division,Employees,20/07/2011,389529,2025,REVENUE,Care Recruitment UK Ltd
Peterborough City Council,Children's & Education Services - Children's Social Care,Other Children's & Families Services,Employees,20/07/2011,390616,1580.33,REVENUE,Blue Group International Ltd
Peterborough City Council,Children's & Education Services - Children's Social Care,Other Children's & Families Services,Employees,20/07/2011,390852,1658.78,REVENUE,Blue Group International Ltd
Peterborough City Council,Children's & Education Services - Children's Social Care,More than one Service Division,Employees,20/07/2011,391024,2025,REVENUE,Care Recruitment UK Ltd
Peterborough City Council,Children's & Education Services - Children's Social Care,Family Support Services,Premises,20/07/2011,391786,514.7,REVENUE,Ideal Cleaning Services
Peterborough City Council,"Highways, Roads & Transport Services","Transport planning, policy and strategy",Transport,20/07/2011,391834,4297.27,REVENUE,Atkins Limited
Peterborough City Council,Children's & Education Services - Education,Non-School Funding,Transport,20/07/2011,391836,743.2,REVENUE,Bedford Borough Council
Peterborough City Council,"Highways, Roads & Transport Services","Transport planning, policy and strategy",Transport,20/07/2011,391880,628.06,REVENUE,Atkins Limited
Peterborough City Council,Capital,Capital,Capital Pending Update to BS,20/07/2011,391906,26084.2,CAPITAL,Atkins Limited
Peterborough City Council,"Highways, Roads & Transport Services","Transport planning, policy and strategy",Transport,20/07/2011,391909,-1718.83,REVENUE,Atkins Limited
Peterborough City Council,Capital,Capital,Capital Pending Update to BS,20/07/2011,391916,17489.64,CAPITAL,Atkins Limited
Peterborough City Council,"Highways, Roads & Transport Services","Transport planning, policy and strategy",Transport,20/07/2011,391918,3101.09,REVENUE,Atkins Limited
Peterborough City Council,Children's & Education Services - Children's Social Care,Other Children's & Families Services,Employees,20/07/2011,391966,1490.66,REVENUE,Blue Group International Ltd
Peterborough City Council,Capital,Capital,Capital Pending Update to BS,20/07/2011,392054,1296.18,CAPITAL,British Telecom PLC
Peterborough City Council,Housing Services,Private Sector Housing Renewal,Supplies and Services,20/07/2011,392159,709.75,REVENUE,Nightingale Services
Peterborough City Council,"Cultural, Environmental and Planning Services",Support Services & Management Costs,Supplies and Services,20/07/2011,392167,502.8,REVENUE,Serco Ltd
Peterborough City Council,Support Services,Support Services,Employees,20/07/2011,392218,926.34,REVENUE,Sacco Mann Ltd
Peterborough City Council,"Cultural, Environmental and Planning Services",Flood Defence & Land Drainage,Supplies and Services,20/07/2011,392418,12165.6,REVENUE,L A Jackson
Peterborough City Council,Children's & Education Services - Children's Social Care,Family Support Services,Third Party Payments,20/07/2011,392420,70500,REVENUE,Peterborough Provider Services
Peterborough City Council,Support Services,Support Services,Employees,20/07/2011,392466,1320.94,REVENUE,Venn Group Ltd
Peterborough City Council,Capital,Capital,Capital Pending Update to BS,20/07/2011,392507,12490.52,CAPITAL,Atkins Limited
Peterborough City Council,Capital,Capital,Capital Pending Update to BS,20/07/2011,392629,2093.4,CAPITAL,Serco Ltd
Peterborough City Council,Capital,Capital,Capital Pending Update to BS,20/07/2011,392699,6076.8,CAPITAL,Straight plc
Peterborough City Council,"Highways, Roads & Transport Services","Transport planning, policy and strategy",Transport,20/07/2011,392706,517.19,REVENUE,Burnt Tree Group
Peterborough City Council,Capital,Capital,Capital Pending Update to BS,20/07/2011,392707,4773.35,CAPITAL,Rider Levett Bucknall UK Ltd
Peterborough City Council,"Cultural, Environmental and Planning Services","Cemetery, Crematorium & Mortuary Services",Supplies and Services,20/07/2011,392739,926,REVENUE,Anglia Co-operative Funerals
Peterborough City Council,"Cultural, Environmental and Planning Services",Community Development,Premises,20/07/2011,392740,2379.38,REVENUE,Cambridgeshire County Council
Peterborough City Council,Children's & Education Services - Children's Social Care,Family Support Services,Third Party Payments,20/07/2011,392745,64311.75,REVENUE,Ormiston Children & Families Trust
Peterborough City Council,Children's & Education Services - Children's Social Care,Family Support Services,Third Party Payments,20/07/2011,392749,63618,REVENUE,Ormiston Children & Families Trust
Peterborough City Council,"Cultural, Environmental and Planning Services","Cemetery, Crematorium & Mortuary Services",Supplies and Services,20/07/2011,392762,5336,REVENUE,"Strickland, Mr A M"
Peterborough City Council,"Cultural, Environmental and Planning Services","Cemetery, Crematorium & Mortuary Services",Supplies and Services,20/07/2011,392766,5645.6,REVENUE,"Strickland, Mr A M"
Peterborough City Council,Children's & Education Services - Education,Non-School Funding,Supplies and Services,20/07/2011,392770,650,REVENUE,Aerial Extreme Ltd
Peterborough City Council,Housing Services,Homelessness,Supplies and Services,20/07/2011,392795,703.51,REVENUE,Euro RSCG Riley Ltd
Peterborough City Council,"Highways, Roads & Transport Services","Transport planning, policy and strategy",Supplies and Services,20/07/2011,392817,4800,REVENUE,Pitney Bowes Software Ltd
Peterborough City Council,"Cultural, Environmental and Planning Services",Building Control,Grants and Other Income,20/07/2011,392897,8736,REVENUE,Manchester City Council
Peterborough City Council,"Cultural, Environmental and Planning Services",Economic Development,Employees,20/07/2011,393091,1182.68,REVENUE,Randstad CPE
Peterborough City Council,Support Services,Support Services,Supplies and Services,20/07/2011,393116,5370,REVENUE,Experian Ltd
Peterborough City Council,"Cultural, Environmental and Planning Services",Regulatory services,Supplies and Services,20/07/2011,393118,563.4,REVENUE,Gradko International Ltd
Peterborough City Council,Children's & Education Services - Education,Non-School Funding,Supplies and Services,20/07/2011,393119,19742.2,REVENUE,Capita Absence Management Services Ltd
Peterborough City Council,"Highways, Roads & Transport Services",Traffic management & Road Safety,Supplies and Services,20/07/2011,393126,2888.4,REVENUE,Pitney Bowes Software Ltd
Peterborough City Council,Housing Services,Homelessness,Supplies and Services,20/07/2011,393166,702.55,REVENUE,Euro RSCG Riley Ltd
Peterborough City Council,Housing Services,Private Sector Housing Renewal,Supplies and Services,20/07/2011,393201,705.5,REVENUE,Fletton Electrics Ltd
Peterborough City Council,"Cultural, Environmental and Planning Services",Regulatory services,Supplies and Services,20/07/2011,393208,2532,REVENUE,Safetykleen UK Ltd
Peterborough City Council,Children's & Education Services - Education,Non-School Funding,Premises,20/07/2011,393258,658,REVENUE,Cambridgeshire County Council
Peterborough City Council,Children's & Education Services - Children's Social Care,Other Children's & Families Services,Supplies and Services,20/07/2011,393265,1843.25,REVENUE,Social Support Limited
Peterborough City Council,Children's & Education Services - Education,Secondary,Supplies and Services,20/07/2011,393302,770.13,REVENUE,Nelson Thornes Ltd
Peterborough City Council,Support Services,Support Services,Supplies and Services,20/07/2011,393307,1680,REVENUE,Northgate Information Solutions
Peterborough City Council,"Highways, Roads & Transport Services","Transport planning, policy and strategy",Employees,20/07/2011,393315,1386,REVENUE,Hays Specialist Recruitment Ltd
Peterborough City Council,"Cultural, Environmental and Planning Services",Economic Development,Employees,20/07/2011,393322,1386,REVENUE,Hays Specialist Recruitment Ltd
Peterborough City Council,"Cultural, Environmental and Planning Services",Economic Development,Employees,20/07/2011,393323,2158.92,REVENUE,Hays Specialist Recruitment Ltd
Peterborough City Council,"Highways, Roads & Transport Services",Traffic management & Road Safety,Supplies and Services,20/07/2011,393422,661.5,REVENUE,Johnston Press Midlands Division
Peterborough City Council,"Cultural, Environmental and Planning Services",Development Control,More than one Expenses Type,20/07/2011,393871,1472.4,REVENUE,Barnack Parish Council
Peterborough City Council,Children's & Education Services - Children's Social Care,Support Services & Management Costs,Supplies and Services,20/07/2011,393894,660,REVENUE,Redacted Personal Data
Peterborough City Council,Children's & Education Services - Education,Non-School Funding,Supplies and Services,20/07/2011,394115,2576.3,REVENUE,CLEAPSS
Peterborough City Council,"Highways, Roads & Transport Services",Public Transport,Supplies and Services,20/07/2011,394199,34588.81,REVENUE,Stagecoach in Peterborough
Peterborough City Council,More than one Service Area Category,More than one Service Division,Supplies and Services,20/07/2011,394219,687.57,REVENUE,Royal Mail
Peterborough City Council,Support Services,Support Services,Supplies and Services,20/07/2011,394228,900,REVENUE,Redacted Personal Data
Peterborough City Council,Support Services,Support Services,Supplies and Services,20/07/2011,394242,-1680,REVENUE,Northgate Information Solutions
Peterborough City Council,Children's & Education Services - Children's Social Care,Family Support Services,Supplies and Services - Transfer Payments,20/07/2011,394261,594.62,REVENUE,Total Promotions Ltd
Peterborough City Council,Children's & Education Services - Children's Social Care,Support Services & Management Costs,Supplies and Services,20/07/2011,394317,540,REVENUE,Redacted Personal Data
Peterborough City Council,"Highways, Roads & Transport Services",Public Transport,Supplies and Services,20/07/2011,394334,18613.05,REVENUE,Stagecoach in Peterborough
Peterborough City Council,"Highways, Roads & Transport Services",Public Transport,Supplies and Services,20/07/2011,394335,18690.12,REVENUE,Stagecoach in Peterborough
Peterborough City Council,"Highways, Roads & Transport Services",Public Transport,Supplies and Services,20/07/2011,394336,15896.67,REVENUE,Stagecoach in Peterborough
Peterborough City Council,"Highways, Roads & Transport Services",Public Transport,Supplies and Services,20/07/2011,394337,17732.32,REVENUE,Stagecoach in Peterborough
Peterborough City Council,"Highways, Roads & Transport Services",Public Transport,Supplies and Services,20/07/2011,394338,17769.75,REVENUE,Stagecoach in Peterborough
Peterborough City Council,"Highways, Roads & Transport Services",Public Transport,Supplies and Services,20/07/2011,394339,9524.95,REVENUE,Stagecoach in Peterborough
Peterborough City Council,More than one Service Area Category,More than one Service Division,Balance Sheet,20/07/2011,394388,530,Balance Sheet,Graysons Solicitors
Peterborough City Council,More than one Service Area Category,More than one Service Division,Balance Sheet,20/07/2011,394394,5200,Balance Sheet,Flint Bishop Solicitors
Peterborough City Council,More than one Service Area Category,More than one Service Division,Balance Sheet,20/07/2011,394397,1000,Balance Sheet,Redacted Personal Data
Peterborough City Council,More than one Service Area Category,More than one Service Division,Balance Sheet,20/07/2011,394399,585,Balance Sheet,Dept for Work & Pensions
Peterborough City Council,More than one Service Area Category,More than one Service Division,Balance Sheet,20/07/2011,394404,10000,Balance Sheet,Delta Legal
Peterborough City Council,"Cultural, Environmental and Planning Services",Tourism,Supplies and Services,20/07/2011,394542,1040.4,REVENUE,East of England Agricultural Society
Peterborough City Council,"Highways, Roads & Transport Services",Public Transport,Supplies and Services,20/07/2011,394557,18683.37,REVENUE,Stagecoach in Peterborough
Peterborough City Council,"Highways, Roads & Transport Services",Public Transport,Supplies and Services,20/07/2011,394559,15787.62,REVENUE,Stagecoach in Peterborough
Peterborough City Council,"Highways, Roads & Transport Services",Public Transport,Supplies and Services,20/07/2011,394561,18544.15,REVENUE,Stagecoach in Peterborough
Peterborough City Council,More than one Service Area Category,More than one Service Division,Balance Sheet,20/07/2011,394568,599.98,Balance Sheet,Welland Primary School
Peterborough City Council,"Cultural, Environmental and Planning Services",Community Safety (Crime Reduction),Grants and Other Income,20/07/2011,394579,6487.59,REVENUE,Home Office Accounting Officer
Peterborough City Council,Non Distributed Cost,Pensions,Third Party Payments,20/07/2011,394595,70396.67,REVENUE,Cambridgeshire County Council
Peterborough City Council,Non Distributed Cost,Pensions,Third Party Payments,20/07/2011,394596,43956.37,REVENUE,Cambridgeshire County Council
Peterborough City Council,Capital,Capital,Capital Pending Update to BS,20/07/2011,394759,1048.69,CAPITAL,Faulks Perry Culley & Rech
Peterborough City Council,Deficit/(Surplus) on Trading Undertakings,Trading Account Surpluses & Deficits,Transport,20/07/2011,394854,12583.64,REVENUE,Intercounty Truck & Van Ltd
Peterborough City Council,More than one Service Area Category,More than one Service Division,More than one Expenses Type,20/07/2011,394858,154212.38,"Mixture of Capital, Revenue and/or Balance Sheet",Ringway Infrastructure Services
Peterborough City Council,"Cultural, Environmental and Planning Services",Support Services & Management Costs,Supplies and Services,20/07/2011,395101,-502.8,REVENUE,Serco Ltd
Peterborough City Council,"Cultural, Environmental and Planning Services","Cemetery, Crematorium & Mortuary Services",Supplies and Services,20/07/2011,395130,800,REVENUE,Neopost Limited
Peterborough City Council,"Highways, Roads & Transport Services",Traffic management & Road Safety,Supplies and Services,20/07/2011,395157,-1650,REVENUE,Pitney Bowes Software Ltd
Peterborough City Council,Deficit/(Surplus) on Trading Undertakings,Trading Account Surpluses & Deficits,Transport,20/07/2011,395161,728.67,REVENUE,Neil Cawthorn
Peterborough City Council,Deficit/(Surplus) on Trading Undertakings,Trading Account Surpluses & Deficits,Transport,20/07/2011,395163,1112.8,REVENUE,Neil Cawthorn
Peterborough City Council,"Cultural, Environmental and Planning Services",Community Development,Third Party Payments,20/07/2011,395187,2110.02,REVENUE,East of England Development Agency
Peterborough City Council,Children's & Education Services - Education,Secondary,Employees,20/07/2011,395237,1910.47,REVENUE,Mana Resourcing Ltd
Peterborough City Council,Children's & Education Services - Education,Secondary,Employees,20/07/2011,395255,1076.4,REVENUE,Mana Resourcing Ltd
Peterborough City Council,More than one Service Area Category,More than one Service Division,Balance Sheet,20/07/2011,395362,852.02,Balance Sheet,Redacted Personal Data
Peterborough City Council,Children's & Education Services - Children's Social Care,Children Looked After,Supplies and Services - Transfer Payments,20/07/2011,395392,3155.7,REVENUE,I S P
Peterborough City Council,Children's & Education Services - Children's Social Care,Family Support Services,Third Party Payments,20/07/2011,395401,13762.25,REVENUE,Family Action
Peterborough City Council,Children's & Education Services - Children's Social Care,Support Services & Management Costs,Supplies and Services,20/07/2011,395415,966,REVENUE,Psychology Clinic of East Anglia
Peterborough City Council,Children's & Education Services - Children's Social Care,Support Services & Management Costs,Supplies and Services,20/07/2011,395417,1288.95,REVENUE,Psychology Clinic of East Anglia
Peterborough City Council,Support Services,Support Services,Premises,20/07/2011,395426,2193.93,REVENUE,Anglian Water
Peterborough City Council,Support Services,Support Services,Premises,20/07/2011,395430,5030.44,REVENUE,Southern Electric
Peterborough City Council,"Cultural, Environmental and Planning Services","Cemetery, Crematorium & Mortuary Services",Supplies and Services,20/07/2011,395436,892.47,REVENUE,Anglia Co-operative Funerals
Peterborough City Council,"Cultural, Environmental and Planning Services","Cemetery, Crematorium & Mortuary Services",Supplies and Services,20/07/2011,395448,860,REVENUE,Anglia Co-operative Funerals
Peterborough City Council,Deficit/(Surplus) on Trading Undertakings,Trading Account Surpluses & Deficits,Transport,20/07/2011,395459,568.48,REVENUE,Anker Of Coates
Peterborough City Council,Children's & Education Services - Children's Social Care,Children Looked After,Supplies and Services - Transfer Payments,20/07/2011,395481,710.08,REVENUE,Redacted Personal Data
Peterborough City Council,Children's & Education Services - Children's Social Care,Children Looked After,Supplies and Services - Transfer Payments,20/07/2011,395482,863.24,REVENUE,Redacted Personal Data
Peterborough City Council,Children's & Education Services - Children's Social Care,Children Looked After,Supplies and Services - Transfer Payments,20/07/2011,395483,710.08,REVENUE,Redacted Personal Data
Peterborough City Council,Children's & Education Services - Children's Social Care,Children Looked After,Supplies and Services - Transfer Payments,20/07/2011,395484,710.08,REVENUE,Redacted Personal Data
Peterborough City Council,Children's & Education Services - Children's Social Care,Children Looked After,Supplies and Services - Transfer Payments,20/07/2011,395485,863.24,REVENUE,Redacted Personal Data
Peterborough City Council,Children's & Education Services - Children's Social Care,Children Looked After,Supplies and Services - Transfer Payments,20/07/2011,395486,570.36,REVENUE,Redacted Personal Data
Peterborough City Council,Children's & Education Services - Children's Social Care,Children Looked After,Supplies and Services - Transfer Payments,20/07/2011,395487,863.24,REVENUE,Redacted Personal Data
Peterborough City Council,Children's & Education Services - Children's Social Care,Children Looked After,Supplies and Services - Transfer Payments,20/07/2011,395488,710.08,REVENUE,Redacted Personal Data
Peterborough City Council,Children's & Education Services - Children's Social Care,Children Looked After,Supplies and Services - Transfer Payments,20/07/2011,395489,570.36,REVENUE,Redacted Personal Data
Peterborough City Council,Children's & Education Services - Children's Social Care,Children Looked After,Supplies and Services - Transfer Payments,20/07/2011,395490,863.24,REVENUE,Redacted Personal Data
Peterborough City Council,Children's & Education Services - Children's Social Care,Children Looked After,Supplies and Services - Transfer Payments,20/07/2011,395491,863.24,REVENUE,Redacted Personal Data
Peterborough City Council,Children's & Education Services - Children's Social Care,Children Looked After,Supplies and Services - Transfer Payments,20/07/2011,395492,710.08,REVENUE,Redacted Personal Data
Peterborough City Council,Children's & Education Services - Children's Social Care,Children Looked After,Supplies and Services - Transfer Payments,20/07/2011,395493,710.08,REVENUE,Redacted Personal Data
Peterborough City Council,Children's & Education Services - Children's Social Care,Children Looked After,Supplies and Services - Transfer Payments,20/07/2011,395494,710.08,REVENUE,Redacted Personal Data
Peterborough City Council,Children's & Education Services - Children's Social Care,Other Children's & Families Services,Supplies and Services - Transfer Payments,20/07/2011,395516,600,REVENUE,Redacted Personal Data
Peterborough City Council,Children's & Education Services - Children's Social Care,Other Children's & Families Services,Supplies and Services - Transfer Payments,20/07/2011,395517,613.6,REVENUE,Redacted Personal Data
Peterborough City Council,Children's & Education Services - Children's Social Care,Children Looked After,Supplies and Services - Transfer Payments,20/07/2011,395603,500.92,REVENUE,Redacted Personal Data
Peterborough City Council,Children's & Education Services - Children's Social Care,Other Children's & Families Services,Supplies and Services - Transfer Payments,20/07/2011,395607,669.48,REVENUE,Redacted Personal Data
Peterborough City Council,Children's & Education Services - Children's Social Care,Children Looked After,Supplies and Services - Transfer Payments,20/07/2011,395613,500.92,REVENUE,Redacted Personal Data
Peterborough City Council,Children's & Education Services - Children's Social Care,Children Looked After,Supplies and Services - Transfer Payments,20/07/2011,395614,863.24,REVENUE,Redacted Personal Data
Peterborough City Council,Children's & Education Services - Children's Social Care,Other Children's & Families Services,Supplies and Services - Transfer Payments,20/07/2011,395624,669.48,REVENUE,Redacted Personal Data
Peterborough City Council,Children's & Education Services - Children's Social Care,Other Children's & Families Services,Supplies and Services - Transfer Payments,20/07/2011,395628,669.48,REVENUE,Redacted Personal Data
Peterborough City Council,Children's & Education Services - Children's Social Care,Children Looked After,Supplies and Services - Transfer Payments,20/07/2011,395635,616.18,REVENUE,Redacted Personal Data
Peterborough City Council,Children's & Education Services - Children's Social Care,Children Looked After,Supplies and Services - Transfer Payments,20/07/2011,395636,992.6,REVENUE,Redacted Personal Data
Peterborough City Council,Children's & Education Services - Children's Social Care,Children Looked After,Supplies and Services - Transfer Payments,20/07/2011,395637,992.6,REVENUE,Redacted Personal Data
Peterborough City Council,Children's & Education Services - Children's Social Care,Children Looked After,Supplies and Services - Transfer Payments,20/07/2011,395638,884.94,REVENUE,Redacted Personal Data
Peterborough City Council,Children's & Education Services - Children's Social Care,Children Looked After,Supplies and Services - Transfer Payments,20/07/2011,395639,560.98,REVENUE,Redacted Personal Data
Peterborough City Council,Children's & Education Services - Children's Social Care,Children Looked After,Supplies and Services - Transfer Payments,20/07/2011,395640,529.9,REVENUE,Redacted Personal Data
Peterborough City Council,Children's & Education Services - Children's Social Care,Children Looked After,Supplies and Services - Transfer Payments,20/07/2011,395641,793.1,REVENUE,Redacted Personal Data
Peterborough City Council,Children's & Education Services - Children's Social Care,Children Looked After,Supplies and Services - Transfer Payments,20/07/2011,395642,884.94,REVENUE,Redacted Personal Data
Peterborough City Council,Children's & Education Services - Children's Social Care,Children Looked After,Supplies and Services - Transfer Payments,20/07/2011,395643,884.94,REVENUE,Redacted Personal Data
Peterborough City Council,Children's & Education Services - Children's Social Care,Children Looked After,Supplies and Services - Transfer Payments,20/07/2011,395644,884.94,REVENUE,Redacted Personal Data
Peterborough City Council,Children's & Education Services - Children's Social Care,Children Looked After,Supplies and Services - Transfer Payments,20/07/2011,395645,884.94,REVENUE,Redacted Personal Data
Peterborough City Council,Children's & Education Services - Children's Social Care,Children Looked After,Supplies and Services - Transfer Payments,20/07/2011,395646,884.94,REVENUE,Redacted Personal Data
Peterborough City Council,Children's & Education Services - Children's Social Care,Children Looked After,Supplies and Services - Transfer Payments,20/07/2011,395647,884.94,REVENUE,Redacted Personal Data
Peterborough City Council,Children's & Education Services - Children's Social Care,Children Looked After,Supplies and Services - Transfer Payments,20/07/2011,395648,769.02,REVENUE,Redacted Personal Data
Peterborough City Council,Children's & Education Services - Children's Social Care,Children Looked After,Supplies and Services - Transfer Payments,20/07/2011,395649,710.08,REVENUE,Redacted Personal Data
Peterborough City Council,Children's & Education Services - Children's Social Care,Children Looked After,Supplies and Services - Transfer Payments,20/07/2011,395650,992.6,REVENUE,Redacted Personal Data
Peterborough City Council,Children's & Education Services - Children's Social Care,Children Looked After,Supplies and Services - Transfer Payments,20/07/2011,395651,992.6,REVENUE,Redacted Personal Data
Peterborough City Council,Children's & Education Services - Children's Social Care,Children Looked After,Supplies and Services - Transfer Payments,20/07/2011,395652,769.02,REVENUE,Redacted Personal Data
Peterborough City Council,Children's & Education Services - Children's Social Care,Children Looked After,Supplies and Services - Transfer Payments,20/07/2011,395653,884.94,REVENUE,Redacted Personal Data
Peterborough City Council,Children's & Education Services - Children's Social Care,Children Looked After,Supplies and Services - Transfer Payments,20/07/2011,395654,769.02,REVENUE,Redacted Personal Data
Peterborough City Council,Children's & Education Services - Children's Social Care,Children Looked After,Supplies and Services - Transfer Payments,20/07/2011,395655,992.6,REVENUE,Redacted Personal Data
Peterborough City Council,Children's & Education Services - Children's Social Care,Children Looked After,Supplies and Services - Transfer Payments,20/07/2011,395656,992.6,REVENUE,Redacted Personal Data
Peterborough City Council,Children's & Education Services - Children's Social Care,Children Looked After,Supplies and Services - Transfer Payments,20/07/2011,395657,884.94,REVENUE,Redacted Personal Data
Peterborough City Council,Children's & Education Services - Children's Social Care,Children Looked After,Supplies and Services - Transfer Payments,20/07/2011,395658,884.94,REVENUE,Redacted Personal Data
Peterborough City Council,Children's & Education Services - Children's Social Care,Children Looked After,Supplies and Services - Transfer Payments,20/07/2011,395659,884.94,REVENUE,Redacted Personal Data
Peterborough City Council,Children's & Education Services - Children's Social Care,Children Looked After,Supplies and Services - Transfer Payments,20/07/2011,395660,769.02,REVENUE,Redacted Personal Data
Peterborough City Council,Children's & Education Services - Children's Social Care,Children Looked After,Supplies and Services - Transfer Payments,20/07/2011,395661,769.02,REVENUE,Redacted Personal Data
Peterborough City Council,Children's & Education Services - Children's Social Care,Children Looked After,Supplies and Services - Transfer Payments,20/07/2011,395662,884.94,REVENUE,Redacted Personal Data
Peterborough City Council,Children's & Education Services - Children's Social Care,Children Looked After,Supplies and Services - Transfer Payments,20/07/2011,395663,884.94,REVENUE,Redacted Personal Data
Peterborough City Council,Children's & Education Services - Children's Social Care,Children Looked After,Supplies and Services - Transfer Payments,20/07/2011,395664,884.94,REVENUE,Redacted Personal Data
Peterborough City Council,Children's & Education Services - Children's Social Care,Children Looked After,Supplies and Services - Transfer Payments,20/07/2011,395665,570.36,REVENUE,Redacted Personal Data
Peterborough City Council,Children's & Education Services - Children's Social Care,Children Looked After,Supplies and Services - Transfer Payments,20/07/2011,395666,769.02,REVENUE,Redacted Personal Data
Peterborough City Council,Children's & Education Services - Children's Social Care,Children Looked After,Supplies and Services - Transfer Payments,20/07/2011,395667,697.06,REVENUE,Redacted Personal Data
Peterborough City Council,Children's & Education Services - Children's Social Care,Children Looked After,Supplies and Services - Transfer Payments,20/07/2011,395670,769.02,REVENUE,Redacted Personal Data
Peterborough City Council,Children's & Education Services - Children's Social Care,Children Looked After,Supplies and Services - Transfer Payments,20/07/2011,395671,769.02,REVENUE,Redacted Personal Data
Peterborough City Council,Children's & Education Services - Children's Social Care,Children Looked After,Supplies and Services - Transfer Payments,20/07/2011,395672,854.56,REVENUE,Redacted Personal Data
Peterborough City Council,Children's & Education Services - Children's Social Care,Children Looked After,Supplies and Services - Transfer Payments,20/07/2011,395673,677.04,REVENUE,Redacted Personal Data
Peterborough City Council,Children's & Education Services - Children's Social Care,Children Looked After,Supplies and Services - Transfer Payments,20/07/2011,395674,992.6,REVENUE,Redacted Personal Data
Peterborough City Council,Children's & Education Services - Children's Social Care,Children Looked After,Supplies and Services - Transfer Payments,20/07/2011,395675,885.08,REVENUE,Redacted Personal Data
Peterborough City Council,Children's & Education Services - Children's Social Care,Children Looked After,Supplies and Services - Transfer Payments,20/07/2011,395676,697.06,REVENUE,Redacted Personal Data
Peterborough City Council,Children's & Education Services - Children's Social Care,Children Looked After,Supplies and Services - Transfer Payments,20/07/2011,395677,697.06,REVENUE,Redacted Personal Data
Peterborough City Council,Children's & Education Services - Children's Social Care,Children Looked After,Supplies and Services - Transfer Payments,20/07/2011,395678,884.94,REVENUE,Redacted Personal Data
Peterborough City Council,Children's & Education Services - Children's Social Care,Children Looked After,Supplies and Services - Transfer Payments,20/07/2011,395679,884.94,REVENUE,Redacted Personal Data
Peterborough City Council,Children's & Education Services - Children's Social Care,Children Looked After,Supplies and Services - Transfer Payments,20/07/2011,395680,697.06,REVENUE,Redacted Personal Data
Peterborough City Council,Children's & Education Services - Children's Social Care,Children Looked After,Supplies and Services - Transfer Payments,20/07/2011,395681,884.94,REVENUE,Redacted Personal Data
Peterborough City Council,Children's & Education Services - Children's Social Care,Children Looked After,Supplies and Services - Transfer Payments,20/07/2011,395683,889.52,REVENUE,Redacted Personal Data
Peterborough City Council,Children's & Education Services - Children's Social Care,Children Looked After,Supplies and Services - Transfer Payments,20/07/2011,395684,710.08,REVENUE,Redacted Personal Data
Peterborough City Council,Children's & Education Services - Children's Social Care,Children Looked After,Supplies and Services - Transfer Payments,20/07/2011,395686,992.6,REVENUE,Redacted Personal Data
Peterborough City Council,Children's & Education Services - Children's Social Care,Children Looked After,Supplies and Services - Transfer Payments,20/07/2011,395687,677.04,REVENUE,Redacted Personal Data
Peterborough City Council,Children's & Education Services - Children's Social Care,Children Looked After,Supplies and Services - Transfer Payments,20/07/2011,395688,769.02,REVENUE,Redacted Personal Data
Peterborough City Council,Children's & Education Services - Children's Social Care,Children Looked After,Supplies and Services - Transfer Payments,20/07/2011,395689,769.02,REVENUE,Redacted Personal Data
Peterborough City Council,Children's & Education Services - Children's Social Care,Children Looked After,Supplies and Services - Transfer Payments,20/07/2011,395690,605.22,REVENUE,Redacted Personal Data
Peterborough City Council,Children's & Education Services - Children's Social Care,Children Looked After,Supplies and Services - Transfer Payments,20/07/2011,395691,697.06,REVENUE,Redacted Personal Data
Peterborough City Council,Children's & Education Services - Children's Social Care,Children Looked After,Supplies and Services - Transfer Payments,20/07/2011,395692,884.94,REVENUE,Redacted Personal Data
Peterborough City Council,Children's & Education Services - Children's Social Care,Children Looked After,Supplies and Services - Transfer Payments,20/07/2011,395693,550.62,REVENUE,Redacted Personal Data
Peterborough City Council,Children's & Education Services - Children's Social Care,Children Looked After,Supplies and Services - Transfer Payments,20/07/2011,395696,500.92,REVENUE,Redacted Personal Data
Peterborough City Council,Children's & Education Services - Children's Social Care,Children Looked After,Supplies and Services - Transfer Payments,20/07/2011,395697,992.6,REVENUE,Redacted Personal Data
Peterborough City Council,Children's & Education Services - Children's Social Care,Children Looked After,Supplies and Services - Transfer Payments,20/07/2011,395698,737.1,REVENUE,Redacted Personal Data
Peterborough City Council,Children's & Education Services - Children's Social Care,Children Looked After,Supplies and Services - Transfer Payments,20/07/2011,395699,697.06,REVENUE,Redacted Personal Data
Peterborough City Council,Children's & Education Services - Children's Social Care,Children Looked After,Supplies and Services - Transfer Payments,20/07/2011,395704,697.06,REVENUE,Redacted Personal Data
Peterborough City Council,Children's & Education Services - Children's Social Care,Children Looked After,Supplies and Services - Transfer Payments,20/07/2011,395705,500.92,REVENUE,Redacted Personal Data
Peterborough City Council,Children's & Education Services - Children's Social Care,Children Looked After,Supplies and Services - Transfer Payments,20/07/2011,395708,570.36,REVENUE,Redacted Personal Data
Peterborough City Council,Children's & Education Services - Children's Social Care,Children Looked After,Supplies and Services - Transfer Payments,20/07/2011,395709,769.02,REVENUE,Redacted Personal Data
Peterborough City Council,Children's & Education Services - Children's Social Care,Children Looked After,Supplies and Services - Transfer Payments,20/07/2011,395712,793.1,REVENUE,Redacted Personal Data
Peterborough City Council,Children's & Education Services - Children's Social Care,Children Looked After,Supplies and Services - Transfer Payments,20/07/2011,395713,697.06,REVENUE,Redacted Personal Data
Peterborough City Council,Children's & Education Services - Children's Social Care,Children Looked After,Supplies and Services - Transfer Payments,20/07/2011,395716,884.94,REVENUE,Redacted Personal Data
Peterborough City Council,Children's & Education Services - Children's Social Care,Children Looked After,Supplies and Services - Transfer Payments,20/07/2011,395717,769.02,REVENUE,Redacted Personal Data
Peterborough City Council,Children's & Education Services - Children's Social Care,Children Looked After,Supplies and Services - Transfer Payments,20/07/2011,395718,769.02,REVENUE,Redacted Personal Data
Peterborough City Council,Children's & Education Services - Children's Social Care,Children Looked After,Supplies and Services - Transfer Payments,20/07/2011,395719,769.02,REVENUE,Redacted Personal Data
Peterborough City Council,Children's & Education Services - Children's Social Care,Children Looked After,Supplies and Services - Transfer Payments,20/07/2011,395720,697.06,REVENUE,Redacted Personal Data
Peterborough City Council,Children's & Education Services - Children's Social Care,Children Looked After,Supplies and Services - Transfer Payments,20/07/2011,395723,697.06,REVENUE,Redacted Personal Data
Peterborough City Council,Children's & Education Services - Children's Social Care,Family Support Services,Supplies and Services,20/07/2011,395728,1148.22,REVENUE,Redacted Personal Data
Peterborough City Council,Children's & Education Services - Children's Social Care,Children Looked After,Supplies and Services - Transfer Payments,20/07/2011,395743,917.98,REVENUE,Redacted Personal Data
Peterborough City Council,Children's & Education Services - Children's Social Care,Children Looked After,Supplies and Services - Transfer Payments,20/07/2011,395747,884.94,REVENUE,Redacted Personal Data
Peterborough City Council,Children's & Education Services - Children's Social Care,Children Looked After,Supplies and Services - Transfer Payments,20/07/2011,395748,500.92,REVENUE,Redacted Personal Data
Peterborough City Council,Children's & Education Services - Children's Social Care,Children Looked After,Supplies and Services - Transfer Payments,20/07/2011,395749,697.06,REVENUE,Redacted Personal Data
Peterborough City Council,Children's & Education Services - Children's Social Care,Children Looked After,Supplies and Services - Transfer Payments,20/07/2011,395750,697.06,REVENUE,Redacted Personal Data
Peterborough City Council,Children's & Education Services - Children's Social Care,Children Looked After,Supplies and Services - Transfer Payments,20/07/2011,395751,697.06,REVENUE,Redacted Personal Data
Peterborough City Council,Children's & Education Services - Children's Social Care,Children Looked After,Supplies and Services - Transfer Payments,20/07/2011,395753,884.94,REVENUE,Redacted Personal Data
Peterborough City Council,Children's & Education Services - Children's Social Care,Children Looked After,Supplies and Services - Transfer Payments,20/07/2011,395755,605.22,REVENUE,Redacted Personal Data
Peterborough City Council,Children's & Education Services - Children's Social Care,Children Looked After,Supplies and Services - Transfer Payments,20/07/2011,395756,697.06,REVENUE,Redacted Personal Data
Peterborough City Council,Children's & Education Services - Children's Social Care,Children Looked After,Supplies and Services - Transfer Payments,20/07/2011,395757,697.06,REVENUE,Redacted Personal Data
Peterborough City Council,Children's & Education Services - Children's Social Care,Children Looked After,Supplies and Services - Transfer Payments,20/07/2011,395758,500.92,REVENUE,Redacted Personal Data
Peterborough City Council,Children's & Education Services - Children's Social Care,Children Looked After,Supplies and Services - Transfer Payments,20/07/2011,395760,1170.26,REVENUE,Redacted Personal Data
Peterborough City Council,Children's & Education Services - Children's Social Care,Children Looked After,Supplies and Services - Transfer Payments,20/07/2011,395762,885.08,REVENUE,Redacted Personal Data
Peterborough City Council,Children's & Education Services - Children's Social Care,Children Looked After,Supplies and Services - Transfer Payments,20/07/2011,395763,885.08,REVENUE,Redacted Personal Data
Peterborough City Council,Children's & Education Services - Children's Social Care,Children Looked After,Supplies and Services - Transfer Payments,20/07/2011,395764,885.08,REVENUE,Redacted Personal Data
Peterborough City Council,Children's & Education Services - Children's Social Care,Children Looked After,Supplies and Services - Transfer Payments,20/07/2011,395765,885.08,REVENUE,Redacted Personal Data
Peterborough City Council,Children's & Education Services - Children's Social Care,Children Looked After,Supplies and Services - Transfer Payments,20/07/2011,395766,697.06,REVENUE,Redacted Personal Data
Peterborough City Council,Children's & Education Services - Children's Social Care,Children Looked After,Supplies and Services - Transfer Payments,20/07/2011,395767,697.06,REVENUE,Redacted Personal Data
Peterborough City Council,Children's & Education Services - Children's Social Care,Children Looked After,Supplies and Services - Transfer Payments,20/07/2011,395768,710.08,REVENUE,Redacted Personal Data
Peterborough City Council,Children's & Education Services - Children's Social Care,Children Looked After,Supplies and Services - Transfer Payments,20/07/2011,395770,884.94,REVENUE,Redacted Personal Data
Peterborough City Council,Children's & Education Services - Children's Social Care,Children Looked After,Supplies and Services - Transfer Payments,20/07/2011,395771,769.02,REVENUE,Redacted Personal Data
Peterborough City Council,Children's & Education Services - Children's Social Care,Children Looked After,Supplies and Services - Transfer Payments,20/07/2011,395772,697.46,REVENUE,Redacted Personal Data
Peterborough City Council,Children's & Education Services - Children's Social Care,Children Looked After,Supplies and Services - Transfer Payments,20/07/2011,395774,992.6,REVENUE,Redacted Personal Data
Peterborough City Council,Children's & Education Services - Children's Social Care,Children Looked After,Supplies and Services - Transfer Payments,20/07/2011,395777,500.92,REVENUE,Redacted Personal Data
Peterborough City Council,Children's & Education Services - Children's Social Care,Children Looked After,Supplies and Services - Transfer Payments,20/07/2011,395778,697.06,REVENUE,Redacted Personal Data
Peterborough City Council,Children's & Education Services - Children's Social Care,Children Looked After,Supplies and Services - Transfer Payments,20/07/2011,395779,500.92,REVENUE,Redacted Personal Data
Peterborough City Council,Children's & Education Services - Children's Social Care,Children Looked After,Supplies and Services - Transfer Payments,20/07/2011,395782,697.06,REVENUE,Redacted Personal Data
Peterborough City Council,Children's & Education Services - Children's Social Care,Children Looked After,Supplies and Services - Transfer Payments,20/07/2011,395783,570.36,REVENUE,Redacted Personal Data
Peterborough City Council,Children's & Education Services - Children's Social Care,Children Looked After,Supplies and Services - Transfer Payments,20/07/2011,395784,500.92,REVENUE,Redacted Personal Data
Peterborough City Council,Children's & Education Services - Children's Social Care,Children Looked After,Supplies and Services - Transfer Payments,20/07/2011,395785,570.36,REVENUE,Redacted Personal Data
Peterborough City Council,Children's & Education Services - Children's Social Care,Children Looked After,Supplies and Services - Transfer Payments,20/07/2011,395786,500.92,REVENUE,Redacted Personal Data
Peterborough City Council,Children's & Education Services - Children's Social Care,Children Looked After,Supplies and Services - Transfer Payments,20/07/2011,395789,500.92,REVENUE,Redacted Personal Data
Peterborough City Council,Children's & Education Services - Children's Social Care,Children Looked After,Supplies and Services - Transfer Payments,20/07/2011,395791,500.92,REVENUE,Redacted Personal Data
Peterborough City Council,Children's & Education Services - Children's Social Care,Children Looked After,Supplies and Services - Transfer Payments,20/07/2011,395792,793.1,REVENUE,Redacted Personal Data
Peterborough City Council,Children's & Education Services - Children's Social Care,Children Looked After,Supplies and Services - Transfer Payments,20/07/2011,395793,884.94,REVENUE,Redacted Personal Data
Peterborough City Council,Children's & Education Services - Children's Social Care,Children Looked After,Supplies and Services - Transfer Payments,20/07/2011,395794,992.6,REVENUE,Redacted Personal Data
Peterborough City Council,Children's & Education Services - Children's Social Care,Children Looked After,Supplies and Services - Transfer Payments,20/07/2011,395797,500.92,REVENUE,Redacted Personal Data
Peterborough City Council,Children's & Education Services - Children's Social Care,Children Looked After,Supplies and Services - Transfer Payments,20/07/2011,395798,500.92,REVENUE,Redacted Personal Data
Peterborough City Council,Children's & Education Services - Children's Social Care,Children Looked After,Supplies and Services - Transfer Payments,20/07/2011,395799,605.22,REVENUE,Redacted Personal Data
Peterborough City Council,Children's & Education Services - Children's Social Care,Children Looked After,Supplies and Services - Transfer Payments,20/07/2011,395801,500.92,REVENUE,Redacted Personal Data
Peterborough City Council,Children's & Education Services - Children's Social Care,Children Looked After,Supplies and Services - Transfer Payments,20/07/2011,395803,500.92,REVENUE,Redacted Personal Data
Peterborough City Council,Children's & Education Services - Children's Social Care,Children Looked After,Supplies and Services - Transfer Payments,20/07/2011,395808,500.92,REVENUE,Redacted Personal Data
Peterborough City Council,Children's & Education Services - Children's Social Care,Children Looked After,Supplies and Services - Transfer Payments,20/07/2011,395810,500.92,REVENUE,Redacted Personal Data
Peterborough City Council,Children's & Education Services - Children's Social Care,Children Looked After,Supplies and Services - Transfer Payments,20/07/2011,395812,522.98,REVENUE,Redacted Personal Data
Peterborough City Council,Children's & Education Services - Children's Social Care,Children Looked After,Supplies and Services - Transfer Payments,20/07/2011,395813,917.62,REVENUE,Redacted Personal Data
Peterborough City Council,Children's & Education Services - Children's Social Care,Children Looked After,Supplies and Services - Transfer Payments,20/07/2011,395814,552.26,REVENUE,Redacted Personal Data
Peterborough City Council,Children's & Education Services - Children's Social Care,Children Looked After,Supplies and Services - Transfer Payments,20/07/2011,395815,711.9,REVENUE,Redacted Personal Data
Peterborough City Council,Children's & Education Services - Children's Social Care,Children Looked After,Supplies and Services - Transfer Payments,20/07/2011,395816,769.02,REVENUE,Redacted Personal Data
Peterborough City Council,Children's & Education Services - Children's Social Care,Children Looked After,Supplies and Services - Transfer Payments,20/07/2011,395817,697.06,REVENUE,Redacted Personal Data
Peterborough City Council,Children's & Education Services - Children's Social Care,Children Looked After,Supplies and Services - Transfer Payments,20/07/2011,395818,605.22,REVENUE,Redacted Personal Data
Peterborough City Council,Children's & Education Services - Children's Social Care,Children Looked After,Supplies and Services - Transfer Payments,20/07/2011,395819,697.06,REVENUE,Redacted Personal Data
Peterborough City Council,Children's & Education Services - Children's Social Care,Children Looked After,Supplies and Services - Transfer Payments,20/07/2011,395824,570.36,REVENUE,Redacted Personal Data
Peterborough City Council,Children's & Education Services - Children's Social Care,Children Looked After,Supplies and Services - Transfer Payments,20/07/2011,395828,500.92,REVENUE,Redacted Personal Data
Peterborough City Council,Children's & Education Services - Children's Social Care,Children Looked After,Supplies and Services - Transfer Payments,20/07/2011,395830,769.02,REVENUE,Redacted Personal Data
Peterborough City Council,Children's & Education Services - Children's Social Care,Children Looked After,Supplies and Services - Transfer Payments,20/07/2011,395831,697.06,REVENUE,Redacted Personal Data
Peterborough City Council,Children's & Education Services - Children's Social Care,Children Looked After,Supplies and Services - Transfer Payments,20/07/2011,395833,697.06,REVENUE,Redacted Personal Data
Peterborough City Council,Children's & Education Services - Children's Social Care,Children Looked After,Supplies and Services - Transfer Payments,20/07/2011,395835,605.22,REVENUE,Redacted Personal Data
Peterborough City Council,Children's & Education Services - Children's Social Care,Children Looked After,Supplies and Services - Transfer Payments,20/07/2011,395836,605.22,REVENUE,Redacted Personal Data
Peterborough City Council,Children's & Education Services - Children's Social Care,Children Looked After,Supplies and Services - Transfer Payments,20/07/2011,395838,669.45,REVENUE,Redacted Personal Data
Peterborough City Council,Children's & Education Services - Children's Social Care,Children Looked After,Supplies and Services - Transfer Payments,20/07/2011,395839,769.02,REVENUE,Redacted Personal Data
Peterborough City Council,Children's & Education Services - Children's Social Care,Children Looked After,Supplies and Services - Transfer Payments,20/07/2011,395840,992.6,REVENUE,Redacted Personal Data
Peterborough City Council,Children's & Education Services - Children's Social Care,Children Looked After,Supplies and Services - Transfer Payments,20/07/2011,395842,697.06,REVENUE,Redacted Personal Data
Peterborough City Council,Children's & Education Services - Children's Social Care,Children Looked After,Supplies and Services - Transfer Payments,20/07/2011,395846,535.71,REVENUE,Redacted Personal Data
Peterborough City Council,"Cultural, Environmental and Planning Services",Economic Development,Employees,20/07/2011,395892,1247.4,REVENUE,Hays Specialist Recruitment Ltd
Peterborough City Council,Children's & Education Services - Education,Non-School Funding,Transport,20/07/2011,395929,1080,REVENUE,Goldstar Cabs Ltd
Peterborough City Council,Children's & Education Services - Education,Non-School Funding,Transport,20/07/2011,395930,1909.5,REVENUE,Goldstar Cabs Ltd
Peterborough City Council,Children's & Education Services - Education,Non-School Funding,Transport,20/07/2011,395932,1485.6,REVENUE,Goldstar Cabs Ltd
Peterborough City Council,Children's & Education Services - Education,Non-School Funding,Transport,20/07/2011,395935,1887.6,REVENUE,Goldstar Cabs Ltd
Peterborough City Council,Deficit/(Surplus) on Trading Undertakings,Trading Account Surpluses & Deficits,Supplies and Services,20/07/2011,395940,625.87,REVENUE,Barron Clark Castings Ltd
Peterborough City Council,Deficit/(Surplus) on Trading Undertakings,Trading Account Surpluses & Deficits,Supplies and Services,20/07/2011,395943,689.64,REVENUE,Barron Clark Castings Ltd
Peterborough City Council,Deficit/(Surplus) on Trading Undertakings,Trading Account Surpluses & Deficits,Supplies and Services,20/07/2011,395945,1088.64,REVENUE,Barron Clark Castings Ltd
Peterborough City Council,Deficit/(Surplus) on Trading Undertakings,Trading Account Surpluses & Deficits,Supplies and Services,20/07/2011,395948,526.68,REVENUE,Barron Clark Castings Ltd
Peterborough City Council,Deficit/(Surplus) on Trading Undertakings,Trading Account Surpluses & Deficits,Supplies and Services,20/07/2011,395950,625.87,REVENUE,Barron Clark Castings Ltd
Peterborough City Council,Deficit/(Surplus) on Trading Undertakings,Trading Account Surpluses & Deficits,Supplies and Services,20/07/2011,395961,2239.88,REVENUE,Barron Clark Castings Ltd
Peterborough City Council,Children's & Education Services - Children's Social Care,Family Support Services,Premises,20/07/2011,395963,1049.4,REVENUE,Fenland District Council
Peterborough City Council,Adult Social Care,Other Adult Services,Supplies and Services,20/07/2011,395967,5407.11,REVENUE,Bridgegate Drug Services
Peterborough City Council,Deficit/(Surplus) on Trading Undertakings,Trading Account Surpluses & Deficits,Supplies and Services,20/07/2011,395996,1784.59,REVENUE,Barron Clark Castings Ltd
Peterborough City Council,Adult Social Care,Other Adult Services,Supplies and Services,20/07/2011,395997,6872.11,REVENUE,Bridgegate Drug Services
Peterborough City Council,Adult Social Care,Other Adult Services,Supplies and Services,20/07/2011,395998,14931.11,REVENUE,Bridgegate Drug Services
Peterborough City Council,Adult Social Care,Other Adult Services,Supplies and Services,20/07/2011,395999,5408.11,REVENUE,Bridgegate Drug Services
Peterborough City Council,Adult Social Care,Other Adult Services,Supplies and Services,20/07/2011,396000,16303.11,REVENUE,Bridgegate Drug Services
Peterborough City Council,Deficit/(Surplus) on Trading Undertakings,Trading Account Surpluses & Deficits,Supplies and Services,20/07/2011,396002,1806.17,REVENUE,Barron Clark Castings Ltd
Peterborough City Council,Deficit/(Surplus) on Trading Undertakings,Trading Account Surpluses & Deficits,Supplies and Services,20/07/2011,396003,1251.74,REVENUE,Barron Clark Castings Ltd
Peterborough City Council,Children's & Education Services - Education,Non-School Funding,Employees,20/07/2011,396006,1787.2,REVENUE,The Little Group Early Years Ctr Ltd
Peterborough City Council,Children's & Education Services - Children's Social Care,Youth Justice,Employees,20/07/2011,396015,1645,REVENUE,Anglia Ruskin University
Peterborough City Council,Deficit/(Surplus) on Trading Undertakings,Trading Account Surpluses & Deficits,Supplies and Services,20/07/2011,396030,1111.62,REVENUE,Barron Clark Castings Ltd
Peterborough City Council,Children's & Education Services - Children's Social Care,Other Children's & Families Services,Third Party Payments,22/07/2011,365351,15160.75,REVENUE,Vivacity Culture and Leisure
Peterborough City Council,Children's & Education Services - Children's Social Care,Other Children's & Families Services,Third Party Payments,22/07/2011,386557,15160.75,REVENUE,Vivacity Culture and Leisure
Peterborough City Council,Children's & Education Services - Children's Social Care,More than one Service Division,Employees,22/07/2011,387617,1200,REVENUE,Blue Group International Ltd
Peterborough City Council,Housing Services,Homelessness,Employees,22/07/2011,387668,636.6,REVENUE,Anne Corder Recruitment
Peterborough City Council,"Cultural, Environmental and Planning Services",Tourism,Supplies and Services,22/07/2011,387694,3384,REVENUE,SNG Promotions
Peterborough City Council,Housing Services,Housing Benefits,Employees,22/07/2011,388186,571.32,REVENUE,Reed Personnel Services Plc
Peterborough City Council,Housing Services,Housing Benefits,Employees,22/07/2011,388455,704.63,REVENUE,Reed Personnel Services Plc
Peterborough City Council,Children's & Education Services - Children's Social Care,Other Children's & Families Services,Employees,22/07/2011,388977,1776,REVENUE,Blue Group International Ltd
Peterborough City Council,Children's & Education Services - Children's Social Care,Other Children's & Families Services,Third Party Payments,22/07/2011,389106,15160.75,REVENUE,Vivacity Culture and Leisure
Peterborough City Council,Housing Services,Homelessness,Employees,22/07/2011,389132,624.73,REVENUE,Anne Corder Recruitment
Peterborough City Council,Housing Services,Housing Benefits,Employees,22/07/2011,389173,704.63,REVENUE,Reed Personnel Services Plc
Peterborough City Council,Children's & Education Services - Children's Social Care,Other Children's & Families Services,Employees,22/07/2011,390013,1776,REVENUE,Blue Group International Ltd
Peterborough City Council,Children's & Education Services - Children's Social Care,Children Looked After,Supplies and Services - Transfer Payments,22/07/2011,390390,2850.47,REVENUE,Nene Valley Fostering Agency
Peterborough City Council,Capital,Capital,Capital Pending Update to BS,22/07/2011,390843,38265.98,CAPITAL,J Breheny Contractors Ltd
Peterborough City Council,Children's & Education Services - Children's Social Care,Other Children's & Families Services,Employees,22/07/2011,391038,1776,REVENUE,Blue Group International Ltd
Peterborough City Council,Children's & Education Services - Children's Social Care,Other Children's & Families Services,Employees,22/07/2011,391959,1776,REVENUE,Blue Group International Ltd
Peterborough City Council,Children's & Education Services - Children's Social Care,Children Looked After,Supplies and Services - Transfer Payments,22/07/2011,394597,11200,REVENUE,Amegreen
Peterborough City Council,Children's & Education Services - Children's Social Care,Children Looked After,Supplies and Services - Transfer Payments,22/07/2011,394600,11200,REVENUE,Amegreen
Peterborough City Council,More than one Service Area Category,More than one Service Division,More than one Expenses Type,22/07/2011,394633,4852,"Mixture of Capital, Revenue and/or Balance Sheet",Morley Building Services
Peterborough City Council,More than one Service Area Category,More than one Service Division,More than one Expenses Type,22/07/2011,394740,6904.32,REVENUE,The Synergy Group
Peterborough City Council,Children's & Education Services - Education,Secondary,Premises,22/07/2011,394897,3669.61,REVENUE,Npower Ltd
Peterborough City Council,Support Services,Support Services,Supplies and Services,22/07/2011,395206,900,REVENUE,Browne Jacobson
Peterborough City Council,Children's & Education Services - Education,Non-School Funding,Supplies and Services,22/07/2011,395207,1500,REVENUE,Browne Jacobson
Peterborough City Council,"Highways, Roads & Transport Services",Street Lighting,Premises,22/07/2011,395450,1754.01,REVENUE,Southern Electric
Peterborough City Council,Support Services,Support Services,Premises,22/07/2011,395884,531.13,REVENUE,Southern Electric
Peterborough City Council,Support Services,Support Services,Premises,22/07/2011,395887,2273.29,REVENUE,Anglian Water
Peterborough City Council,"Cultural, Environmental and Planning Services",Economic Development,Employees,22/07/2011,395900,1346.4,REVENUE,Hays Specialist Recruitment Ltd
Peterborough City Council,Deficit/(Surplus) on Trading Undertakings,Trading Account Surpluses & Deficits,Supplies and Services,22/07/2011,395990,3600,REVENUE,Perkins Engines Co Ltd
Peterborough City Council,Support Services,Support Services,Supplies and Services,22/07/2011,396004,1630,REVENUE,Criminal Records Bureau
Peterborough City Council,Support Services,Support Services,Employees,22/07/2011,396019,14782.7,REVENUE,Tribal Resourcing Ltd
Peterborough City Council,Support Services,Support Services,Employees,22/07/2011,396021,1985.84,REVENUE,Tribal Resourcing Ltd
Peterborough City Council,Deficit/(Surplus) on Trading Undertakings,Trading Account Surpluses & Deficits,Supplies and Services,22/07/2011,396049,1167.55,REVENUE,Perkins Engines Co Ltd
Peterborough City Council,Deficit/(Surplus) on Trading Undertakings,Trading Account Surpluses & Deficits,Supplies and Services,22/07/2011,396060,1171.68,REVENUE,Barron Clark Castings Ltd
Peterborough City Council,Deficit/(Surplus) on Trading Undertakings,Trading Account Surpluses & Deficits,Supplies and Services,22/07/2011,396064,1034.46,REVENUE,Barron Clark Castings Ltd
Peterborough City Council,Children's & Education Services - Children's Social Care,Children Looked After,Supplies and Services,22/07/2011,396065,5420.1,REVENUE,St Andrew's Healthcare
Peterborough City Council,Deficit/(Surplus) on Trading Undertakings,Trading Account Surpluses & Deficits,Supplies and Services,22/07/2011,396068,738.9,REVENUE,Barron Clark Castings Ltd
Peterborough City Council,"Cultural, Environmental and Planning Services",Waste Collection,Supplies and Services,22/07/2011,396087,900,REVENUE,Viridor Waste Kent Ltd
Peterborough City Council,"Cultural, Environmental and Planning Services",Waste Collection,Supplies and Services,22/07/2011,396090,539.17,REVENUE,Viridor Waste Kent Ltd
Peterborough City Council,Capital,Capital,Capital Pending Update to BS,22/07/2011,396103,329016,CAPITAL,MARS (Construction) Ltd
Peterborough City Council,Support Services,Support Services,Employees,22/07/2011,396104,7097.71,REVENUE,Tribal Resourcing Ltd
Peterborough City Council,Deficit/(Surplus) on Trading Undertakings,Trading Account Surpluses & Deficits,Supplies and Services,22/07/2011,396133,1539.85,REVENUE,B Safe Electrical Services
Peterborough City Council,Children's & Education Services - Children's Social Care,Other Children's & Families Services,Third Party Payments,22/07/2011,396138,47383.75,REVENUE,YMCA Cambridge & Peterborough
Peterborough City Council,Children's & Education Services - Education,Primary,Supplies and Services,22/07/2011,396144,650.34,REVENUE,Central Books
Peterborough City Council,"Cultural, Environmental and Planning Services",Community Safety (CCTV),Supplies and Services,22/07/2011,396145,655.2,REVENUE,British Telecom PLC
Peterborough City Council,Court Services,Coroner's Court Service,Supplies and Services,22/07/2011,396148,3000.8,REVENUE,BDW Practice Account
Peterborough City Council,"Cultural, Environmental and Planning Services",Economic Development,Third Party Payments,22/07/2011,396167,5000,REVENUE,Peterborough Racial Equality Council
Peterborough City Council,More than one Service Area Category,More than one Service Division,More than one Expenses Type,22/07/2011,396173,1315.03,REVENUE,Peterborough City Council
Peterborough City Council,Support Services,Support Services,Supplies and Services,22/07/2011,396185,5900.32,REVENUE,Browne Jacobson
Peterborough City Council,More than one Service Area Category,More than one Service Division,Balance Sheet,22/07/2011,396226,2500,Balance Sheet,Fentons Solicitors LLP
Peterborough City Council,Support Services,Support Services,Premises,22/07/2011,396228,598.95,REVENUE,Eastern Shires Purchasing Organisation
Peterborough City Council,Support Services,Support Services,Premises,22/07/2011,396232,9994.39,REVENUE,Eastern Shires Purchasing Organisation
Peterborough City Council,Children's & Education Services - Children's Social Care,Other Children's & Families Services,Supplies and Services - Transfer Payments,22/07/2011,396233,863.92,REVENUE,Redacted Personal Data
Peterborough City Council,"Cultural, Environmental and Planning Services",Economic Development,Employees,22/07/2011,396262,1129.73,REVENUE,Randstad CPE
Peterborough City Council,Children's & Education Services - Education,Non-School Funding,Supplies and Services,22/07/2011,396268,1645.6,REVENUE,Pakistan Comm Ass of PBoro Pre- School
Peterborough City Council,"Cultural, Environmental and Planning Services",Building Control,Supplies and Services,22/07/2011,396285,680.4,REVENUE,BSi Management Systems
Peterborough City Council,Deficit/(Surplus) on Trading Undertakings,Trading Account Surpluses & Deficits,Supplies and Services,22/07/2011,396288,637.44,REVENUE,Perkins Engines Co Ltd
Peterborough City Council,Deficit/(Surplus) on Trading Undertakings,Trading Account Surpluses & Deficits,Supplies and Services,22/07/2011,396304,5164,REVENUE,Perkins Engines Co Ltd
Peterborough City Council,Children's & Education Services - Children's Social Care,More than one Service Division,Supplies and Services,22/07/2011,396315,587.6,REVENUE,Children & Families Looked After Children
Peterborough City Council,Children's & Education Services - Children's Social Care,Children Looked After,More than one Expenses Type,22/07/2011,396324,535.76,REVENUE,Clare Lodge Secure Unit
Peterborough City Council,Children's & Education Services - Children's Social Care,Children Looked After,More than one Expenses Type,22/07/2011,396335,1080.68,REVENUE,Clare Lodge Secure Unit
Peterborough City Council,Children's & Education Services - Education,Non-School Funding,Supplies and Services,22/07/2011,396345,720,REVENUE,Paston & Gunthorpe Pre-School
Peterborough City Council,Housing Services,Homelessness,Supplies and Services,22/07/2011,396350,700,REVENUE,Woodcock Holmes
Peterborough City Council,Children's & Education Services - Children's Social Care,More than one Service Division,More than one Expenses Type,22/07/2011,396358,942.33,REVENUE,Children & Families Looked After Children
Peterborough City Council,Children's & Education Services - Education,Non-School Funding,Supplies and Services,22/07/2011,396390,590,REVENUE,Peterborough Regional College
Peterborough City Council,Children's & Education Services - Education,All Schools - apportion across sectors,Supplies and Services,22/07/2011,396411,-8028.13,REVENUE,Updata Infrastructure UK Ltd
Peterborough City Council,Children's & Education Services - Education,All Schools - apportion across sectors,Supplies and Services,22/07/2011,396412,-8028.13,REVENUE,Updata Infrastructure UK Ltd
Peterborough City Council,Children's & Education Services - Education,All Schools - apportion across sectors,Supplies and Services,22/07/2011,396415,-2646,REVENUE,Updata Infrastructure UK Ltd
Peterborough City Council,Children's & Education Services - Education,All Schools - apportion across sectors,Supplies and Services,22/07/2011,396416,-2646,REVENUE,Updata Infrastructure UK Ltd
Peterborough City Council,Children's & Education Services - Education,Non-School Funding,Transport,22/07/2011,396437,1308,REVENUE,A2B Euro Cars
Peterborough City Council,Children's & Education Services - Education,Non-School Funding,Transport,22/07/2011,396448,1300.8,REVENUE,Woodgrange Travel Ltd t/a DiamondCars
Peterborough City Council,More than one Service Area Category,More than one Service Division,Transport,22/07/2011,396450,658.8,REVENUE,Peterborough Cars
Peterborough City Council,More than one Service Area Category,More than one Service Division,Transport,22/07/2011,396451,1707.6,REVENUE,Peterborough Cars
Peterborough City Council,Children's & Education Services - Education,Non-School Funding,Transport,22/07/2011,396452,1935.6,REVENUE,Goldstar Cabs Ltd
Peterborough City Council,Children's & Education Services - Education,Non-School Funding,Transport,22/07/2011,396453,1496.4,REVENUE,Goldstar Cabs Ltd
Peterborough City Council,Children's & Education Services - Education,Non-School Funding,Transport,22/07/2011,396454,1209.6,REVENUE,Goldstar Cabs Ltd
Peterborough City Council,More than one Service Area Category,More than one Service Division,More than one Expenses Type,22/07/2011,396455,2102.4,REVENUE,Goldstar Cabs Ltd
Peterborough City Council,Children's & Education Services - Education,Non-School Funding,Transport,22/07/2011,396456,1096.8,REVENUE,Goldstar Cabs Ltd
Peterborough City Council,More than one Service Area Category,More than one Service Division,Transport,22/07/2011,396457,685.2,REVENUE,Goldstar Cabs Ltd
Peterborough City Council,Children's & Education Services - Education,Non-School Funding,Transport,22/07/2011,396458,1081.2,REVENUE,Goldstar Cabs Ltd
Peterborough City Council,Children's & Education Services - Education,Non-School Funding,Transport,22/07/2011,396460,760.8,REVENUE,Goldstar Cabs Ltd
Peterborough City Council,More than one Service Area Category,More than one Service Division,More than one Expenses Type,22/07/2011,396490,1783,"Mixture of Capital, Revenue and/or Balance Sheet",S R K Engineering
Peterborough City Council,More than one Service Area Category,More than one Service Division,More than one Expenses Type,22/07/2011,396504,4635.75,"Mixture of Capital, Revenue and/or Balance Sheet",Jones Heating Ltd
Peterborough City Council,More than one Service Area Category,More than one Service Division,More than one Expenses Type,22/07/2011,396506,1950,"Mixture of Capital, Revenue and/or Balance Sheet",EMS Stairlifts
Peterborough City Council,Children's & Education Services - Education,Secondary,Transport,22/07/2011,396514,1234.8,REVENUE,A2B Euro Cars
Peterborough City Council,More than one Service Area Category,More than one Service Division,More than one Expenses Type,22/07/2011,396520,8983.8,"Mixture of Capital, Revenue and/or Balance Sheet",Retrofit UK Ltd
Peterborough City Council,Children's & Education Services - Children's Social Care,Children Looked After,Supplies and Services,22/07/2011,396522,2408.63,REVENUE,London Borough of Barnet
Peterborough City Council,More than one Service Area Category,More than one Service Division,More than one Expenses Type,22/07/2011,396524,2492.7,"Mixture of Capital, Revenue and/or Balance Sheet",Retrofit UK Ltd
Peterborough City Council,Housing Services,Homelessness,Supplies and Services,22/07/2011,396536,549.99,REVENUE,Capitol Lettors
Peterborough City Council,More than one Service Area Category,More than one Service Division,More than one Expenses Type,22/07/2011,396538,3429.6,"Mixture of Capital, Revenue and/or Balance Sheet",Warics Ltd
